Workbook

Sheet Full Data Mashup
A1: Date/Time | B1: Time | C1: Serial Time | D1: Thin Cell Solar Panel Energy Generation in 15 minutes (kwH) | E1: Monocrystalline Solar Panel Energy Generation in 15 minutes (kwH) | F1: Polycrystalline Solar Panel Energy Generation in 15 minutes (kwH) | G1: Average Power Thin Cell (W/m^2) | H1: Average Power Monocrystalline (W/m^2) | I1: Average Power Polycrystalline (W/m^2) | J1: Thin Efficiency | K1: Mono Efficiency | L1: Poly Efficiency | M1: Cosine of Solar Zenith Angle | N1: HTRV(V) | O1: Total Irradiance at all wavelengths (Watts/meters^2) | P1: Total Irradiance at 414 nm ((Watts/meters^2)/nm) | Q1: Total Irradiance at 496 nm ((Watts/meters^2)/nm) | R1: Total Irradiance at 613 nm ((Watts/meters^2)/nm) | S1: Total Irradiance at 670 nm ((Watts/meters^2)/nm) | T1: Total Irradiance at 869 nm ((Watts/meters^2)/nm) | U1: Total Irradiance at 937 nm ((Watts/meters^2)/nm) | V1: Diffuse Irradiance at all wavelengths ((Watts/meters^2)/nm) | W1: Diffuse Irradiance at 414 nm ((Watts/meters^2)/nm) | X1: Diffuse Irradiance at 496 nm ((Watts/meters^2)/nm) | Y1: Diffuse Irradiance at 613 nm ((Watts/meters^2)/nm) | Z1: Diffuse Irradiance at 670 nm ((Watts/meters^2)/nm) | AA1: Diffuse Irradiance at 869 nm ((Watts/meters^2)/nm) | AB1: Diffuse Irradiance at 937 nm ((Watts/meters^2)/nm) | AC1: Direct Irradiance at all wavelengths (W/m^2) | AD1: Direct Irradiance at 414 nm ((Watts/meters^2)/nm) | AE1: Direct Irradiance at 496 nm ((Watts/meters^2)/nm) | AF1: Direct Irradiance at 613 nm ((Watts/meters^2)/nm) | AG1: Direct Irradiance at 670 nm ((Watts/meters^2)/nm) | AH1: Direct Irradiance at 869 nm ((Watts/meters^2)/nm) | AI1: Direct Irradiance at 937 nm ((Watts/meters^2)/nm) | AJ1: cumulative kwh | AK1: Cumulative Generation (thin) | AL1: Cumulative Generation (mono) | AM1: Cumulative Generation (Poly) | AN1: cumulative efficiency thin | AO1: cumulative efficiency mono | AP1: cumulative efficiency poly
A2: 2014-09-30T23:59:59.997 | B2: 00:00:00 | C2: 41913 | D2: 0 | E2: 0 | F2: 0 | G2: =D2*4000/ 21.6 -> 0 | H2: =E2*4000/21.775 -> 0 | I2: =F2*4000/21.775 -> 0 | J2: =IFERROR(G2/$O2,) -> 0 | K2: =IFERROR(H2/$O2,) -> 0 | L2: 0 | M2: -0.71388 | N2: 7.0672 | O2: 0 | P2: 0 | Q2: 0 | R2: 0 | S2: 0 | T2: 0 | U2: 0 | V2: 0 | W2: 0 | X2: 0 | Y2: 0 | Z2: 0 | AA2: 0 | AB2: 0 | AC2: 0 | AD2: 0 | AE2: 0 | AF2: 0 | AG2: 0 | AH2: 0 | AI2: 0 | AJ2: 0
A3: 2014-10-01T00:14:59.997 | B3: 00:15:00 | C3: 41913.01042 | D3: 0 | E3: 0 | F3: 0 | G3: =D3*4000/ 21.6 -> 0 | H3: =E3*4000/21.775 -> 0 | I3: =F3*4000/21.775 -> 0 | J3: =IFERROR(G3/$O3,) -> 0 | K3: =IFERROR(H3/$O3,) -> 0 | L3: =IFERROR(I3/$O3,) -> 0 | M3: -0.71228 | N3: 7.0899 | O3: 0 | P3: 0 | Q3: 0 | R3: 0 | S3: 0 | T3: 0 | U3: 0 | V3: 0 | W3: 0 | X3: 0 | Y3: 0 | Z3: 0 | AA3: 0 | AB3: 0 | AC3: 0 | AD3: 0 | AE3: 0 | AF3: 0 | AG3: 0 | AH3: 0 | AI3: 0 | AJ3: 0
A4: 2014-10-01T00:29:59.997 | B4: 00:30:00 | C4: 41913.02083 | D4: 0 | E4: 0 | F4: 0 | G4: 0 | H4: 0 | I4: 0 | J4: 0 | K4: 0 | L4: 0 | M4: -0.70781 | N4: 7.0867 | O4: 0 | P4: 0 | Q4: 0 | R4: 0 | S4: 0 | T4: 0 | U4: 0 | V4: 0 | W4: 0 | X4: 0 | Y4: 0 | Z4: 0 | AA4: 0 | AB4: 0 | AC4: 0 | AD4: 0 | AE4: 0 | AF4: 0 | AG4: 0 | AH4: 0 | AI4: 0 | AJ4: 0
A5: 2014-10-01T00:44:59.997 | B5: 00:45:00 | C5: 41913.03125 | D5: 0 | E5: 0 | F5: 0 | G5: 0 | H5: 0 | I5: 0 | J5: 0 | K5: 0 | L5: 0 | M5: -0.70048 | N5: 7.1191 | O5: 0 | P5: 0 | Q5: 0 | R5: 0 | S5: 0 | T5: 0 | U5: 0 | V5: 0 | W5: 0 | X5: 0 | Y5: 0 | Z5: 0 | AA5: 0 | AB5: 0 | AC5: 0 | AD5: 0 | AE5: 0 | AF5: 0 | AG5: 0 | AH5: 0 | AI5: 0 | AJ5: 0
A6: 2014-10-01T00:59:59.997 | B6: 01:00:00 | C6: 41913.04167 | D6: 0 | E6: 0 | F6: 0 | G6: 0 | H6: 0 | I6: 0 | J6: 0 | K6: 0 | L6: 0 | M6: -0.69033 | N6: 7.0705 | O6: 0 | P6: 0 | Q6: 0 | R6: 0 | S6: 0 | T6: 0 | U6: 0 | V6: 0 | W6: 0 | X6: 0 | Y6: 0 | Z6: 0 | AA6: 0 | AB6: 0 | AC6: 0 | AD6: 0 | AE6: 0 | AF6: 0 | AG6: 0 | AH6: 0 | AI6: 0 | AJ6: 0
A7: 2014-10-01T01:14:59.997 | B7: 01:15:00 | C7: 41913.05208 | D7: 0 | E7: 0 | F7: 0 | G7: 0 | H7: 0 | I7: 0 | J7: 0 | K7: 0 | L7: 0 | M7: -0.6774 | N7: 7.077 | O7: 0 | P7: 0 | Q7: 0 | R7: 0 | S7: 0 | T7: 0 | U7: 0 | V7: 0 | W7: 0 | X7: 0 | Y7: 0 | Z7: 0 | AA7: 0 | AB7: 0 | AC7: 0 | AD7: 0 | AE7: 0 | AF7: 0 | AG7: 0 | AH7: 0 | AI7: 0 | AJ7: 0
A8: 2014-10-01T01:29:59.997 | B8: 01:30:00 | C8: 41913.0625 | D8: 0 | E8: 0 | F8: 0 | G8: 0 | H8: 0 | I8: 0 | J8: 0 | K8: 0 | L8: 0 | M8: -0.66175 | N8: 7.0608 | O8: 0 | P8: 0 | Q8: 0 | R8: 0 | S8: 0 | T8: 0 | U8: 0 | V8: 0 | W8: 0 | X8: 0 | Y8: 0 | Z8: 0 | AA8: 0 | AB8: 0 | AC8: 0 | AD8: 0 | AE8: 0 | AF8: 0 | AG8: 0 | AH8: 0 | AI8: 0 | AJ8: 0
A9: 2014-10-01T01:44:59.997 | B9: 01:45:00 | C9: 41913.07292 | D9: 0 | E9: 0 | F9: 0 | G9: 0 | H9: 0 | I9: 0 | J9: 0 | K9: 0 | L9: 0 | M9: -0.64344 | N9: 7.0737 | O9: 0 | P9: 0 | Q9: 0 | R9: 0 | S9: 0 | T9: 0 | U9: 0 | V9: 0 | W9: 0 | X9: 0 | Y9: 0 | Z9: 0 | AA9: 0 | AB9: 0 | AC9: 0 | AD9: 0 | AE9: 0 | AF9: 0 | AG9: 0 | AH9: 0 | AI9: 0 | AJ9: 0
A10: 2014-10-01T01:59:59.997 | B10: 02:00:00 | C10: 41913.08333 | D10: 0 | E10: 0 | F10: 0 | G10: 0 | H10: 0 | I10: 0 | J10: 0 | K10: 0 | L10: 0 | M10: -0.62255 | N10: 7.0931 | O10: 0 | P10: 0 | Q10: 0 | R10: 0 | S10: 0 | T10: 0 | U10: 0 | V10: 0 | W10: 0 | X10: 0 | Y10: 0 | Z10: 0 | AA10: 0 | AB10: 0 | AC10: 0 | AD10: 0 | AE10: 0 | AF10: 0 | AG10: 0 | AH10: 0 | AI10: 0 | AJ10: 0
A11: 2014-10-01T02:14:59.997 | B11: 02:15:00 | C11: 41913.09375 | D11: 0 | E11: 0 | F11: 0 | G11: 0 | H11: 0 | I11: 0 | J11: 0 | K11: 0 | L11: 0 | M11: -0.59917 | N11: 7.0413 | O11: 0 | P11: 0 | Q11: 0 | R11: 0 | S11: 0 | T11: 0 | U11: 0 | V11: 0 | W11: 0 | X11: 0 | Y11: 0 | Z11: 0 | AA11: 0 | AB11: 0 | AC11: 0 | AD11: 0 | AE11: 0 | AF11: 0 | AG11: 0 | AH11: 0 | AI11: 0 | AJ11: 0
A12: 2014-10-01T02:29:59.997 | B12: 02:30:00 | C12: 41913.10417 | D12: 0 | E12: 0 | F12: 0 | G12: 0 | H12: 0 | I12: 0 | J12: 0 | K12: 0 | L12: 0 | M12: -0.5734 | N12: 7.051 | O12: 0 | P12: 0 | Q12: 0 | R12: 0 | S12: 0 | T12: 0 | U12: 0 | V12: 0 | W12: 0 | X12: 0 | Y12: 0 | Z12: 0 | AA12: 0 | AB12: 0 | AC12: 0 | AD12: 0 | AE12: 0 | AF12: 0 | AG12: 0 | AH12: 0 | AI12: 0 | AJ12: 0
A13: 2014-10-01T02:44:59.997 | B13: 02:45:00 | C13: 41913.11458 | D13: 0 | E13: 0 | F13: 0 | G13: 0 | H13: 0 | I13: 0 | J13: 0 | K13: 0 | L13: 0 | M13: -0.51516 | N13: 7.0575 | O13: 0 | P13: 0 | Q13: 0 | R13: 0 | S13: 0 | T13: 0 | U13: 0 | V13: 0 | W13: 0 | X13: 0 | Y13: 0 | Z13: 0 | AA13: 0 | AB13: 0 | AC13: 0 | AD13: 0 | AE13: 0 | AF13: 0 | AG13: 0 | AH13: 0 | AI13: 0 | AJ13: 0
A14: 2014-10-01T02:59:59.997 | B14: 03:00:00 | C14: 41913.125 | D14: 0 | E14: 0 | F14: 0 | G14: 0 | H14: 0 | I14: 0 | J14: 0 | K14: 0 | L14: 0 | M14: -0.48293 | N14: 7.0478 | O14: 0 | P14: 0 | Q14: 0 | R14: 0 | S14: 0 | T14: 0 | U14: 0 | V14: 0 | W14: 0 | X14: 0 | Y14: 0 | Z14: 0 | AA14: 0 | AB14: 0 | AC14: 0 | AD14: 0 | AE14: 0 | AF14: 0 | AG14: 0 | AH14: 0 | AI14: 0 | AJ14: 0
A15: 2014-10-01T03:14:59.997 | B15: 03:15:00 | C15: 41913.13542 | D15: 0 | E15: 0 | F15: 0 | G15: 0 | H15: 0 | I15: 0 | J15: 0 | K15: 0 | L15: 0 | M15: -0.44882 | N15: 7.0316 | O15: 0 | P15: 0 | Q15: 0 | R15: 0 | S15: 0 | T15: 0 | U15: 0 | V15: 0 | W15: 0 | X15: 0 | Y15: 0 | Z15: 0 | AA15: 0 | AB15: 0 | AC15: 0 | AD15: 0 | AE15: 0 | AF15: 0 | AG15: 0 | AH15: 0 | AI15: 0 | AJ15: 0
A16: 2014-10-01T03:29:59.997 | B16: 03:30:00 | C16: 41913.14583 | D16: 0 | E16: 0 | F16: 0 | G16: 0 | H16: 0 | I16: 0 | J16: 0 | K16: 0 | L16: 0 | M16: -0.41296 | N16: 7.0672 | O16: 0 | P16: 0 | Q16: 0 | R16: 0 | S16: 0 | T16: 0 | U16: 0 | V16: 0 | W16: 0 | X16: 0 | Y16: 0 | Z16: 0 | AA16: 0 | AB16: 0 | AC16: 0 | AD16: 0 | AE16: 0 | AF16: 0 | AG16: 0 | AH16: 0 | AI16: 0 | AJ16: 0
A17: 2014-10-01T03:44:59.997 | B17: 03:45:00 | C17: 41913.15625 | D17: 0 | E17: 0 | F17: 0 | G17: 0 | H17: 0 | I17: 0 | J17: 0 | K17: 0 | L17: 0 | M17: -0.37551 | N17: 7.0802 | O17: 0 | P17: 0 | Q17: 0 | R17: 0 | S17: 0 | T17: 0 | U17: 0 | V17: 0 | W17: 0 | X17: 0 | Y17: 0 | Z17: 0 | AA17: 0 | AB17: 0 | AC17: 0 | AD17: 0 | AE17: 0 | AF17: 0 | AG17: 0 | AH17: 0 | AI17: 0 | AJ17: 0
A18: 2014-10-01T03:59:59.997 | B18: 04:00:00 | C18: 41913.16667 | D18: 0 | E18: 0 | F18: 0 | G18: 0 | H18: 0 | I18: 0 | J18: 0 | K18: 0 | L18: 0 | M18: -0.33664 | N18: 7.1223 | O18: 0 | P18: 0 | Q18: 0 | R18: 0 | S18: 0 | T18: 0 | U18: 0 | V18: 0 | W18: 0 | X18: 0 | Y18: 0 | Z18: 0 | AA18: 0 | AB18: 0 | AC18: 0 | AD18: 0 | AE18: 0 | AF18: 0 | AG18: 0 | AH18: 0 | AI18: 0 | AJ18: 0
A19: 2014-10-01T04:14:59.997 | B19: 04:15:00 | C19: 41913.17708 | D19: 0 | E19: 0 | F19: 0 | G19: 0 | H19: 0 | I19: 0 | J19: 0 | K19: 0 | L19: 0 | M19: -0.2965 | N19: 7.1547 | O19: 0 | P19: 0 | Q19: 0 | R19: 0 | S19: 0 | T19: 0 | U19: 0 | V19: 0 | W19: 0 | X19: 0 | Y19: 0 | Z19: 0 | AA19: 0 | AB19: 0 | AC19: 0 | AD19: 0 | AE19: 0 | AF19: 0 | AG19: 0 | AH19: 0 | AI19: 0 | AJ19: 0
A20: 2014-10-01T04:29:59.997 | B20: 04:30:00 | C20: 41913.1875 | D20: 0 | E20: 0 | F20: 0 | G20: 0 | H20: 0 | I20: 0 | J20: 0 | K20: 0 | L20: 0 | M20: -0.25527 | N20: 7.1191 | O20: 0 | P20: 0 | Q20: 0 | R20: 0 | S20: 0 | T20: 0 | U20: 0 | V20: 0 | W20: 0 | X20: 0 | Y20: 0 | Z20: 0 | AA20: 0 | AB20: 0 | AC20: 0 | AD20: 0 | AE20: 0 | AF20: 0 | AG20: 0 | AH20: 0 | AI20: 0 | AJ20: 0
A21: 2014-10-01T04:44:59.997 | B21: 04:45:00 | C21: 41913.19792 | D21: 0 | E21: 0 | F21: 0 | G21: 0 | H21: 0 | I21: 0 | J21: 0 | K21: 0 | L21: 0 | M21: -0.21313 | N21: 7.1774 | O21: 0 | P21: 0 | Q21: 0 | R21: 0 | S21: 0 | T21: 0 | U21: 0 | V21: 0 | W21: 0 | X21: 0 | Y21: 0 | Z21: 0 | AA21: 0 | AB21: 0 | AC21: 0 | AD21: 0 | AE21: 0 | AF21: 0 | AG21: 0 | AH21: 0 | AI21: 0 | AJ21: 0
A22: 2014-10-01T04:59:59.997 | B22: 05:00:00 | C22: 41913.20833 | D22: 0 | E22: 0 | F22: 0 | G22: 0 | H22: 0 | I22: 0 | J22: 0 | K22: 0 | L22: 0 | M22: -0.17026 | N22: 7.2033 | O22: 0 | P22: 0 | Q22: 0 | R22: 0 | S22: 0 | T22: 0 | U22: 0 | V22: 0 | W22: 0 | X22: 0 | Y22: 0 | Z22: 0 | AA22: 0 | AB22: 0 | AC22: 0 | AD22: 0 | AE22: 0 | AF22: 0 | AG22: 0 | AH22: 0 | AI22: 0 | AJ22: 0
A23: 2014-10-01T05:14:59.997 | B23: 05:15:00 | C23: 41913.21875 | D23: 0 | E23: 0 | F23: 0 | G23: 0 | H23: 0 | I23: 0 | J23: 0 | K23: 0 | L23: 0 | M23: -0.12684 | N23: 7.0867 | O23: 0 | P23: 0 | Q23: 0 | R23: 0 | S23: 0 | T23: 0 | U23: 0 | V23: 0 | W23: 0 | X23: 0 | Y23: 0 | Z23: 0 | AA23: 0 | AB23: 0 | AC23: 0 | AD23: 0 | AE23: 0 | AF23: 0 | AG23: 0 | AH23: 0 | AI23: 0 | AJ23: 0
A24: 2014-10-01T05:29:59.997 | B24: 05:30:00 | C24: 41913.22917 | D24: 0 | E24: 0 | F24: 0 | G24: 0 | H24: 0 | I24: 0 | J24: 0 | K24: 0 | L24: 0 | M24: -0.08307 | N24: 7.1515 | O24: 0 | P24: 0 | Q24: 0 | R24: 0 | S24: 0 | T24: 0 | U24: 0 | V24: 0 | W24: 0 | X24: 0 | Y24: 0 | Z24: 0 | AA24: 0 | AB24: 0 | AC24: 0 | AD24: 0 | AE24: 0 | AF24: 0 | AG24: 0 | AH24: 0 | AI24: 0 | AJ24: 0
A25: 2014-10-01T05:44:59.997 | B25: 05:45:00 | C25: 41913.23958 | D25: 0 | E25: 0 | F25: 0 | G25: 0 | H25: 0 | I25: 0 | J25: 0 | K25: 0 | L25: 0 | M25: -0.03911 | N25: 7.1417 | O25: 0 | P25: 0 | Q25: 0 | R25: 0 | S25: 0 | T25: 0 | U25: 0 | V25: 0 | W25: 0 | X25: 0 | Y25: 0 | Z25: 0 | AA25: 0 | AB25: 0 | AC25: 0 | AD25: 0 | AE25: 0 | AF25: 0 | AG25: 0 | AH25: 0 | AI25: 0 | AJ25: 0
A26: 2014-10-01T05:59:59.997 | B26: 06:00:00 | C26: 41913.25 | D26: 0 | E26: 0 | F26: 0 | G26: 0 | H26: 0 | I26: 0 | J26: 0 | K26: 0 | L26: 0 | M26: 0.01365 | N26: 7.1644 | O26: 0 | P26: 0 | Q26: 0 | R26: 0 | S26: 0 | T26: 0 | U26: 0 | V26: 0 | W26: 0 | X26: 0 | Y26: 0 | Z26: 0 | AA26: 0 | AB26: 0 | AC26: 0 | AD26: 0 | AE26: 0 | AF26: 0 | AG26: 0 | AH26: 0 | AI26: 0 | AJ26: 0
A27: 2014-10-01T06:14:59.997 | B27: 06:15:00 | C27: 41913.26042 | D27: 0 | E27: 0 | F27: 0 | G27: 0 | H27: 0 | I27: 0 | J27: 0 | K27: 0 | L27: 0 | M27: 0.05284 | N27: 7.1093 | O27: 0.0985 | P27: 0.0031 | Q27: 0.0044 | R27: 0.0018 | S27: 0.0027 | T27: 0.0014 | U27: 0.0002 | V27: 0.0995 | W27: 0.0031 | X27: 0.0044 | Y27: 0.0018 | Z27: 0.0027 | AA27: 0.0018 | AB27: 0.0002 | AC27: -0.003878456 | AD27: 0 | AE27: 0 | AF27: 0 | AG27: 0 | AH27: 0 | AI27: 0 | AJ27: 0
A28: 2014-10-01T06:29:59.997 | B28: 06:30:00 | C28: 41913.27083 | D28: 0 | E28: 0 | F28: 0 | G28: 0 | H28: 0 | I28: 0 | J28: 0 | K28: 0 | L28: 0 | M28: 0.09457 | N28: 7.1677 | O28: 4.7206 | P28: 0.0134 | Q28: 0.0157 | R28: 0.0073 | S28: 0.0085 | T28: 0.0047 | U28: 0.0005 | V28: 4.7687 | W28: 0.014 | X28: 0.0157 | Y28: 0.0073 | Z28: 0.0091 | AA28: 0.0047 | AB28: 0.0007 | AC28: -0.086011415 | AD28: 0 | AE28: 0 | AF28: 0 | AG28: 0 | AH28: 0 | AI28: 0 | AJ28: 0.0006
A29: 2014-10-01T06:44:59.997 | B29: 06:45:00 | C29: 41913.28125 | D29: 0 | E29: 0 | F29: 0 | G29: 0 | H29: 0 | I29: 0 | J29: 0 | K29: 0 | L29: 0 | M29: 0.13657 | N29: 7.2098 | O29: 18.9147 | P29: 0.0325 | Q29: 0.0382 | R29: 0.0238 | S29: 0.0278 | T29: 0.0186 | U29: 0.0022 | V29: 19.1073 | W29: 0.0339 | X29: 0.0396 | Y29: 0.0251 | Z29: 0.0284 | AA29: 0.019 | AB29: 0.0022 | AC29: -0.278083834 | AD29: 0 | AE29: 0 | AF29: 0 | AG29: 0 | AH29: 0 | AI29: 0 | AJ29: 0.0035
A30: 2014-10-01T06:59:59.997 | B30: 07:00:00 | C30: 41913.29167 | D30: 0 | E30: 0.00195313 | F30: 0.00195312 | G30: 0 | H30: 0.3587839266 | I30: 0.3587820895 | J30: 0 | K30: 0.01073923638 | L30: 0.0107391814 | M30: 0.17813 | N30: 7.2551 | O30: 33.4087 | P30: 0.0558 | Q30: 0.0663 | R30: 0.0457 | S30: 0.049 | T30: 0.0324 | U30: 0.0039 | V30: 33.4647 | W30: 0.0579 | X30: 0.0677 | Y30: 0.0471 | Z30: 0.0503 | AA30: 0.0329 | AB30: 0.0039 | AC30: -0.073015487 | AD30: 0 | AE30: 0 | AF30: 0 | AG30: 0 | AH30: 0 | AI30: 0 | AJ30: 0.01
A31: 2014-10-01T07:14:59.997 | B31: 07:15:00 | C31: 41913.30208 | D31: 0.001953120001 | E31: 0.01464843 | F31: 0.01367188 | G31: 0.361688889 | H31: 2.690871183 | I31: 2.511481975 | J31: 0.00534565106 | K31: 0.03977025236 | L31: 0.03711893478 | M31: 0.21892 | N31: 7.1061 | O31: 67.6604 | P31: 0.0743 | Q31: 0.1014 | R31: 0.0882 | S31: 0.0959 | T31: 0.0725 | U31: 0.0079 | V31: 69.5712 | W31: 0.077 | X31: 0.1042 | Y31: 0.0909 | Z31: 0.0998 | AA31: 0.0749 | AB31: 0.0081 | AC31: -2.348157812 | AD31: 0 | AE31: 0 | AF31: 0 | AG31: 0 | AH31: 0 | AI31: 0 | AJ31: 0.023
A32: 2014-10-01T07:29:59.997 | B32: 07:30:00 | C32: 41913.3125 | D32: 0.01611328 | E32: 0.03613281 | F32: 0.04003906 | G32: 2.983940741 | H32: 6.637485189 | I32: 7.355051206 | J32: 0.02310545978 | K32: 0.05139584209 | L32: 0.05695214973 | M32: 0.25867 | N32: 6.9571 | O32: 129.1444 | P32: 0.1071 | Q32: 0.1706 | R32: 0.168 | S32: 0.1838 | T32: 0.1412 | U32: 0.0183 | V32: 130.1689 | W32: 0.1106 | X32: 0.1703 | Y32: 0.1676 | Z32: 0.1834 | AA32: 0.1408 | AB32: 0.0188 | AC32: -1.210472132 | AD32: 0 | AE32: 0.000362138 | AF32: 0.000336271 | AG32: 0.000620808 | AH32: 0.000439739 | AI32: 0 | AJ32: 0.0442
A33: 2014-10-01T07:44:59.997 | B33: 07:45:00 | C33: 41913.32292 | D33: 0.02197266 | E33: 0.04394532 | F33: 0.04882813 | G33: 4.069011111 | H33: 8.072619058 | I33: 8.969576119 | J33: 0.07172515558 | K33: 0.1422974384 | L33: 0.1581082541 | M33: 0.29719 | N33: 6.9279 | O33: 56.7306 | P33: 0.0804 | Q33: 0.1014 | R33: 0.0841 | S33: 0.0844 | T33: 0.0606 | U33: 0.0099 | V33: 58.5306 | W33: 0.0832 | X33: 0.1042 | Y33: 0.0854 | Z33: 0.0876 | AA33: 0.062 | AB33: 0.0101 | AC33: -2.067996615 | AD33: 0 | AE33: 0 | AF33: 0 | AG33: 0 | AH33: 0 | AI33: 0 | AJ33: 0.0618
A34: 2014-10-01T07:59:59.997 | B34: 08:00:00 | C34: 41913.33333 | D34: 0.008789060001 | E34: 0.02734375 | F34: 0.02929687 | G34: 1.627603704 | H34: 5.022962113 | I34: 5.381744202 | J34: 0.03851906197 | K34: 0.1188740161 | L34: 0.1273649955 | M34: 0.33365 | N34: 7.1936 | O34: 42.2545 | P34: 0.0804 | Q34: 0.0845 | R34: 0.0608 | S34: 0.0593 | T34: 0.0396 | U34: 0.0062 | V34: 43.0919 | W34: 0.0832 | X34: 0.0874 | Y34: 0.0635 | Z34: 0.0612 | AA34: 0.041 | AB34: 0.0064 | AC34: -0.94009224 | AD34: 0 | AE34: 0 | AF34: 0 | AG34: 0 | AH34: 0 | AI34: 0 | AJ34: 0.0732
A35: 2014-10-01T08:14:59.997 | B35: 08:15:00 | C35: 41913.34375 | D35: 0.00634766 | E35: 0.02246093 | F35: 0.0234375 | G35: 1.175492593 | H35: 4.126003215 | I35: 4.305396096 | J35: 0.01439180724 | K35: 0.05051553988 | L35: 0.0527118853 | M35: 0.36925 | N35: 7.1093 | O35: 81.6779 | P35: 0.1304 | Q35: 0.1464 | R35: 0.1142 | S35: 0.1107 | T35: 0.0754 | U35: 0.0146 | V35: 82.2121 | W35: 0.1345 | X35: 0.1506 | Y35: 0.1169 | Z35: 0.1133 | AA35: 0.0764 | AB35: 0.0148 | AC35: -0.591206175 | AD35: 0 | AE35: 0 | AF35: 0 | AG35: 0 | AH35: 0 | AI35: 0 | AJ35: 0.0887
A36: 2014-10-01T08:29:59.997 | B36: 08:30:00 | C36: 41913.35417 | D36: 0.02001953 | E36: 0.05078126 | F36: 0.05273438 | G36: 3.70732037 | H36: 9.328360046 | I36: 9.687142135 | J36: 0.02406882017 | K36: 0.06056196875 | L36: 0.06289126881 | M36: 0.40309 | N36: 7.0834 | O36: 154.03 | P36: 0.1941 | Q36: 0.2476 | R36: 0.2128 | S36: 0.2104 | T36: 0.149 | U36: 0.0292 | V36: 159.6713 | W36: 0.2023 | X36: 0.2588 | Y36: 0.2224 | Z36: 0.22 | AA36: 0.1547 | AB36: 0.0304 | AC36: -6.158167166 | AD36: 0 | AE36: 0 | AF36: 0 | AG36: 0 | AH36: 0 | AI36: 0 | AJ36: 0.1161
A37: 2014-10-01T08:44:59.997 | B37: 08:45:00 | C37: 41913.36458 | D37: 0.08984375 | E37: 0.14257812 | F37: 0.17773437 | G37: 16.63773148 | H37: 26.19115867 | I37: 32.64925281 | J37: 0.03400344962 | K37: 0.05352831575 | L37: 0.06672707901 | M37: 0.43502 | N37: 6.5684 | O37: 489.2954 | P37: 0.4299 | Q37: 0.663 | R37: 0.6519 | S37: 0.6653 | T37: 0.4827 | U37: 0.0951 | V37: 493.4818 | W37: 0.4295 | X37: 0.6623 | Y37: 0.6512 | Z37: 0.6642 | AA37: 0.4819 | AB37: 0.095 | AC37: -4.517943712 | AD37: 0.000261012 | AE37: 0.000609028 | AF37: 0.000565526 | AG37: 0.00108755 | AH37: 0.000826538 | AI37: 8.7004e-05 | AJ37: 0.2122
A38: 2014-10-01T08:59:59.997 | B38: 09:00:00 | C38: 41913.375 | D38: 0.14208984 | E38: 0.2265625 | F38: 0.27929688 | G38: 26.31293333 | H38: 41.61882893 | I38: 51.30597107 | J38: 0.1401366131 | K38: 0.2216522823 | L38: 0.2732437667 | M38: 0.46489 | N38: 6.7336 | O38: 187.7663 | P38: 0.2242 | Q38: 0.3038 | R38: 0.2717 | S38: 0.2676 | T38: 0.191 | U38: 0.0354 | V38: 194.9779 | W38: 0.2324 | X38: 0.3151 | Y38: 0.2813 | Z38: 0.2772 | AA38: 0.1962 | AB38: 0.0364 | AC38: -7.706713975 | AD38: 0 | AE38: 0 | AF38: 0 | AG38: 0 | AH38: 0 | AI38: 0 | AJ38: 0.2906
A39: 2014-10-01T09:14:59.997 | B39: 09:15:00 | C39: 41913.38542 | D39: 0.06494141 | E39: 0.1171875 | F39: 0.12011719 | G39: 12.02618704 | H39: 21.52698048 | I39: 22.06515545 | J39: 0.09355718745 | K39: 0.1674681877 | L39: 0.171654896 | M39: 0.49259 | N39: 6.9053 | O39: 128.5437 | P39: 0.1749 | Q39: 0.2195 | R39: 0.1882 | S39: 0.1821 | T39: 0.1303 | U39: 0.0227 | V39: 133.9274 | W39: 0.1824 | X39: 0.2293 | Y39: 0.1964 | Z39: 0.1898 | AA39: 0.1351 | AB39: 0.0235 | AC39: -5.704389236 | AD39: 0 | AE39: 0 | AF39: 0 | AG39: 0 | AH39: 0 | AI39: 0 | AJ39: 0.3261
A40: 2014-10-01T09:29:59.997 | B40: 09:30:00 | C40: 41913.39583 | D40: 0.04199219 | E40: 0.08203125 | F40: 0.08496093 | G40: 7.776331482 | H40: 15.06888634 | I40: 15.60705947 | J40: 0.07457014657 | K40: 0.1445011784 | L40: 0.1496619216 | M40: 0.518 | N40: 6.8923 | O40: 104.2821 | P40: 0.1373 | Q40: 0.1759 | R40: 0.1512 | S40: 0.1461 | T40: 0.1093 | U40: 0.0183 | V40: 107.3814 | W40: 0.142 | X40: 0.1815 | Y40: 0.158 | Z40: 0.1519 | AA40: 0.1131 | AB40: 0.019 | AC40: -3.2591006 | AD40: 0 | AE40: 0 | AF40: 0 | AG40: 0 | AH40: 0 | AI40: 0 | AJ40: 0.3564
A41: 2014-10-01T09:44:59.997 | B41: 09:45:00 | C41: 41913.40625 | D41: 0.03613281 | E41: 0.0703125 | F41: 0.07226563 | G41: 6.691261111 | H41: 12.91618829 | I41: 13.27497222 | J41: 0.03168618833 | K41: 0.06116407174 | L41: 0.06286307808 | M41: 0.541 | N41: 6.8437 | O41: 211.1728 | P41: 0.2529 | Q41: 0.3376 | R41: 0.3019 | S41: 0.2987 | T41: 0.2082 | U41: 0.0428 | V41: 213.1231 | W41: 0.2598 | X41: 0.346 | Y41: 0.3074 | Z41: 0.2984 | AA41: 0.2115 | AB41: 0.0435 | AC41: -2.0369191 | AD41: 0 | AE41: 0 | AF41: 0 | AG41: 0.0003246 | AH41: 0 | AI41: 0 | AJ41: 0.3931
A42: 2014-10-01T09:59:59.997 | B42: 10:00:00 | C42: 41913.41667 | D42: 0.08789062 | E42: 0.15722656 | F42: 0.16113281 | G42: 16.27604074 | H42: 28.88203169 | I42: 29.5995977 | J42: 0.06700895965 | K42: 0.1189082116 | L42: 0.1218624529 | M42: 0.5615 | N42: 6.9182 | O42: 242.8935 | P42: 0.2947 | Q42: 0.3896 | R42: 0.3485 | S42: 0.3376 | T42: 0.2378 | U42: 0.0527 | V42: 251.8862 | W42: 0.3063 | X42: 0.4064 | Y42: 0.3622 | Z42: 0.3505 | AA42: 0.2454 | AB42: 0.0544 | AC42: -9.33342145 | AD42: 0 | AE42: 0 | AF42: 0 | AG42: 0 | AH42: 0 | AI42: 0 | AJ42: 0.4524
A43: 2014-10-01T10:14:59.997 | B43: 10:15:00 | C43: 41913.42708 | D43: 0.0991211 | E43: 0.17773438 | F43: 0.18261719 | G43: 18.35575926 | H43: 32.64925465 | I43: 33.54621171 | J43: 0.109704186 | K43: 0.1951300328 | L43: 0.2004907451 | M43: 0.5794 | N43: 6.8243 | O43: 167.3205 | P43: 0.2283 | Q43: 0.2827 | R43: 0.243 | S43: 0.2329 | T43: 0.1642 | U43: 0.0356 | V43: 173.5075 | W43: 0.2358 | X43: 0.2926 | Y43: 0.2526 | Z43: 0.2412 | AA43: 0.169 | AB43: 0.0369 | AC43: -6.38417684 | AD43: 0 | AE43: 0 | AF43: 0 | AG43: 0 | AH43: 0 | AI43: 0 | AJ43: 0.5098
A44: 2014-10-01T10:29:59.997 | B44: 10:30:00 | C44: 41913.4375 | D44: 0.06982422 | E44: 0.12792969 | F44: 0.12988281 | G44: 12.93041111 | H44: 23.50028749 | I44: 23.85906958 | J44: 0.0650904069 | K44: 0.1182981161 | L44: 0.1201041895 | M44: 0.59464 | N44: 6.7919 | O44: 198.6531 | P44: 0.2659 | Q44: 0.3291 | R44: 0.2841 | S44: 0.2721 | T44: 0.1905 | U44: 0.0445 | V44: 206.7899 | W44: 0.2762 | X44: 0.3432 | Y44: 0.295 | Z44: 0.283 | AA44: 0.1967 | AB44: 0.0463 | AC44: -8.350767376 | AD44: 0 | AE44: 0 | AF44: 0 | AG44: 0 | AH44: 0 | AI44: 0 | AJ44: 0.5585
A45: 2014-10-01T10:44:59.997 | B45: 10:45:00 | C45: 41913.44792 | D45: 0.07617187 | E45: 0.14160156 | F45: 0.14160156 | G45: 14.10590185 | H45: 26.01176762 | I45: 26.01176762 | J45: 0.05173994227 | K45: 0.09541023106 | L45: 0.09541023107 | M45: 0.60714 | N45: 6.6882 | O45: 272.6308 | P45: 0.3453 | Q45: 0.4388 | R45: 0.3841 | S45: 0.3698 | T45: 0.2555 | U45: 0.0631 | V45: 298.2391 | W45: 0.3734 | X45: 0.4781 | Y45: 0.4211 | Z45: 0.4051 | AA45: 0.2774 | AB45: 0.0688 | AC45: -26.14654481 | AD45: 0 | AE45: 0 | AF45: 0 | AG45: 0 | AH45: 0 | AI45: 0 | AJ45: 0.6143
A46: 2014-10-01T10:59:59.997 | B46: 11:00:00 | C46: 41913.45833 | D46: 0.12988281 | E46: 0.22167968 | F46: 0.23046875 | G46: 24.05237222 | H46: 40.72187003 | I46: 42.33639495 | J46: 0.09570676042 | K46: 0.1620363357 | L46: 0.1684606895 | M46: 0.61685 | N46: 6.6656 | O46: 251.3132 | P46: 0.3385 | Q46: 0.4078 | R46: 0.3471 | S46: 0.3306 | T46: 0.2268 | U46: 0.0564 | V46: 288.1227 | W46: 0.385 | X46: 0.4725 | Y46: 0.406 | Z46: 0.3858 | AA46: 0.2598 | AB46: 0.0653 | AC46: -37.39788832 | AD46: 0 | AE46: 0 | AF46: 0 | AG46: 0 | AH46: 0 | AI46: 0 | AJ46: 0.6919
A47: 2014-10-01T11:14:59.997 | B47: 11:15:00 | C47: 41913.46875 | D47: 0.09570313 | E47: 0.171875 | F47: 0.18261719 | G47: 17.72280185 | H47: 31.57290471 | I47: 33.54621171 | J47: 0.07702397993 | K47: 0.1372170608 | L47: 0.145793129 | M47: 0.62374 | N47: 6.834 | O47: 230.0946 | P47: 0.3036 | Q47: 0.3755 | R47: 0.3252 | S47: 0.3106 | T47: 0.2158 | U47: 0.0522 | V47: 243.0342 | W47: 0.32 | X47: 0.398 | Y47: 0.3457 | Z47: 0.3293 | AA47: 0.2273 | AB47: 0.0554 | AC47: -13.08388211 | AD47: 0 | AE47: 0 | AF47: 0 | AG47: 0 | AH47: 0 | AI47: 0 | AJ47: 0.743
A48: 2014-10-01T11:29:59.997 | B48: 11:30:00 | C48: 41913.47917 | D48: 0.09521484 | E48: 0.17382813 | F48: 0.18066406 | G48: 17.63237778 | H48: 31.93168863 | I48: 33.18742778 | J48: 0.05043733478 | K48: 0.0913404471 | L48: 0.09493248311 | M48: 0.62776 | N48: 6.7433 | O48: 349.5898 | P48: 0.4377 | Q48: 0.5582 | R48: 0.4882 | S48: 0.4681 | T48: 0.318 | U48: 0.0821 | V48: 381.6858 | W48: 0.4754 | X48: 0.6103 | Y48: 0.5362 | Z48: 0.5131 | AA48: 0.3462 | AB48: 0.0898 | AC48: -32.30264632 | AD48: 0 | AE48: 0 | AF48: 0 | AG48: 0 | AH48: 0 | AI48: 0 | AJ48: 0.8185
A49: 2014-10-01T11:44:59.997 | B49: 11:45:00 | C49: 41913.48958 | D49: 0.14892578 | E49: 0.26367187 | F49: 0.25683594 | G49: 27.57884815 | H49: 48.43570517 | I49: 47.17996602 | J49: 0.1491337829 | K49: 0.2619181156 | L49: 0.2551276532 | M49: 0.62891 | N49: 6.5522 | O49: 184.9269 | P49: 0.2981 | Q49: 0.3305 | R49: 0.2622 | S49: 0.2451 | T49: 0.1599 | U49: 0.0396 | V49: 208.4265 | W49: 0.3255 | X49: 0.3685 | Y49: 0.2964 | Z49: 0.2766 | AA49: 0.18 | AB49: 0.045 | AC49: -23.54223959 | AD49: 0 | AE49: 0 | AF49: 0 | AG49: 0 | AH49: 0 | AI49: 0 | AJ49: 0.8989
A50: 2014-10-01T11:59:59.997 | B50: 12:00:00 | C50: 41913.5 | D50: 0.11621094 | E50: 0.2109375 | F50: 0.21289063 | G50: 21.52054444 | H50: 38.74856487 | I50: 39.10734879 | J50: 0.03602485258 | K50: 0.06486412742 | L50: 0.06546472273 | M50: 0.62718 | N50: 6.3351 | O50: 597.3805 | P50: 0.6492 | Q50: 0.8745 | R50: 0.8047 | S50: 0.7844 | T50: 0.5306 | U50: 0.1465 | V50: 609.5841 | W50: 0.6663 | X50: 0.8928 | Y50: 0.817 | Z50: 0.7947 | AA50: 0.5339 | AB50: 0.1472 | AC50: -12.16986344 | AD50: 0 | AE50: 0 | AF50: 0 | AG50: 0 | AH50: 0 | AI50: 0 | AJ50: 1.0062
A51: 2014-10-01T12:14:59.997 | B51: 12:15:00 | C51: 41913.51042 | D51: 0.19482422 | E51: 0.40234376 | F51: 0.34960937 | G51: 36.07855926 | H51: 73.90930149 | I51: 64.22215752 | J51: 0.08693412973 | K51: 0.1780902823 | L51: 0.1547483461 | M51: 0.62257 | N51: 6.5198 | O51: 415.0103 | P51: 0.5096 | Q51: 0.6482 | R51: 0.5731 | S51: 0.553 | T51: 0.3644 | U51: 0.0987 | V51: 468.1833 | W51: 0.5589 | X51: 0.7199 | Y51: 0.643 | Z51: 0.6198 | AA51: 0.4093 | AB51: 0.1111 | AC51: -52.78160911 | AD51: 0 | AE51: 0 | AF51: 0 | AG51: 0 | AH51: 0 | AI51: 0 | AJ51: 1.1224
A52: 2014-10-01T12:29:59.997 | B52: 12:30:00 | C52: 41913.52083 | D52: 0.171875 | E52: 0.33886718 | F52: 0.33886719 | G52: 31.8287037 | H52: 62.24885052 | I52: 62.24885235 | J52: 0.05670701058 | K52: 0.1109044923 | L52: 0.1109044956 | M52: 0.61511 | N52: 6.387 | O52: 561.2834 | P52: 0.6355 | Q52: 0.8394 | R52: 0.7608 | S52: 0.7394 | T52: 0.4933 | U52: 0.1373 | V52: 568.6304 | W52: 0.6492 | X52: 0.852 | Y52: 0.7704 | Z52: 0.7458 | AA52: 0.4943 | AB52: 0.1373 | AC52: -7.258851599 | AD52: 0 | AE52: 0 | AF52: 0 | AG52: 0 | AH52: 0 | AI52: 0 | AJ52: 1.2638
A53: 2014-10-01T12:44:59.997 | B53: 12:45:00 | C53: 41913.53125 | D53: 0.20214844 | E53: 0.39160156 | F53: 0.39746094 | G53: 37.4348963 | H53: 71.93599265 | I53: 73.01234259 | J53: 0.06754892154 | K53: 0.1298039852 | L53: 0.1317461911 | M53: 0.60483 | N53: 6.2801 | O53: 554.1894 | P53: 0.6294 | Q53: 0.8295 | R53: 0.7513 | S53: 0.7304 | T53: 0.4871 | U53: 0.1356 | V53: 559.8321 | W53: 0.6417 | X53: 0.8422 | Y53: 0.7581 | Z53: 0.7349 | AA53: 0.4871 | AB53: 0.1356 | AC53: -5.548287039 | AD53: 0 | AE53: 0 | AF53: 0 | AG53: 0 | AH53: 0 | AI53: 0 | AJ53: 1.403
A54: 2014-10-01T12:59:59.997 | B54: 13:00:00 | C54: 41913.54167 | D54: 0.19921875 | E54: 0.39160157 | F54: 0.38476562 | G54: 36.89236111 | H54: 71.93599449 | I54: 70.68025166 | J54: 0.06723055033 | K54: 0.1310920839 | L54: 0.1288036893 | M54: 0.59176 | N54: 6.3092 | O54: 548.744 | P54: 0.6253 | Q54: 0.8239 | R54: 0.7444 | S54: 0.7233 | T54: 0.4819 | U54: 0.1344 | V54: 554.3312 | W54: 0.6362 | X54: 0.8323 | Y54: 0.7499 | Z54: 0.7266 | AA54: 0.4823 | AB54: 0.1346 | AC54: -5.466442176 | AD54: 0 | AE54: 0 | AF54: 0 | AG54: 0 | AH54: 0 | AI54: 0 | AJ54: 1.5407
A55: 2014-10-01T13:14:59.997 | B55: 13:15:00 | C55: 41913.55208 | D55: 0.19384765 | E55: 0.38671875 | F55: 0.38867188 | G55: 35.89771296 | H55: 71.03903559 | I55: 71.39781952 | J55: 0.06676766082 | K55: 0.1321284796 | L55: 0.1327957968 | M55: 0.57597 | N55: 6.1051 | O55: 537.6512 | P55: 0.6123 | Q55: 0.807 | R55: 0.7293 | S55: 0.7098 | T55: 0.4737 | U55: 0.1309 | V55: 542.6231 | W55: 0.6212 | X55: 0.8141 | Y55: 0.7334 | Z55: 0.7124 | AA55: 0.4733 | AB55: 0.1309 | AC55: -4.839242343 | AD55: 0 | AE55: 0 | AF55: 0 | AG55: 0 | AH55: 0 | AI55: 0 | AJ55: 1.6764
A56: 2014-10-01T13:29:59.997 | B56: 13:30:00 | C56: 41913.5625 | D56: 0.19189453 | E56: 0.37695312 | F56: 0.37890624 | G56: 35.53602407 | H56: 69.24511963 | I56: 69.60390172 | J56: 0.06870168874 | K56: 0.1338713821 | L56: 0.1345650144 | M56: 0.55753 | N56: 6.2023 | O56: 517.2511 | P56: 0.5931 | Q56: 0.7803 | R56: 0.7033 | S56: 0.6848 | T56: 0.4566 | U56: 0.1259 | V56: 522.3177 | W56: 0.6006 | X56: 0.786 | Y56: 0.7047 | Z56: 0.6861 | AA56: 0.4561 | AB56: 0.1259 | AC56: -4.904201139 | AD56: 0 | AE56: 0 | AF56: 0 | AG56: 0 | AH56: 0 | AI56: 0 | AJ56: 1.809
A57: 2014-10-01T13:44:59.997 | B57: 13:45:00 | C57: 41913.57292 | D57: 0.19189454 | E57: 0.36523438 | F57: 0.3515625 | G57: 35.53602593 | H57: 67.09242342 | I57: 64.58094145 | J57: 0.06985041009 | K57: 0.1318783732 | L57: 0.1269417479 | M57: 0.53651 | N57: 6.0695 | O57: 508.7447 | P57: 0.5794 | Q57: 0.7663 | R57: 0.6923 | S57: 0.6745 | T57: 0.4508 | U57: 0.1212 | V57: 513.9247 | W57: 0.5869 | X57: 0.7719 | Y57: 0.6951 | Z57: 0.6758 | AA57: 0.4513 | AB57: 0.1212 | AC57: -4.984607108 | AD57: 0 | AE57: 0 | AF57: 0 | AG57: 0 | AH57: 0 | AI57: 0 | AJ57: 1.9361
A58: 2014-10-01T13:59:59.997 | B58: 14:00:00 | C58: 41913.58333 | D58: 0.19433593 | E58: 0.34375 | F58: 0.33691407 | G58: 35.98813519 | H58: 63.14580941 | I58: 61.89007026 | J58: 0.07261289668 | K58: 0.1274086615 | L58: 0.1248749693 | M58: 0.513 | N58: 5.9335 | O58: 495.6163 | P58: 0.5582 | Q58: 0.7424 | R58: 0.6732 | S58: 0.6584 | T58: 0.4417 | U58: 0.116 | V58: 500.4624 | W58: 0.565 | X58: 0.748 | Y58: 0.6759 | Z58: 0.6591 | AA58: 0.4413 | AB58: 0.116 | AC58: -4.6337238 | AD58: 0 | AE58: 0 | AF58: 0 | AG58: 0 | AH58: 0 | AI58: 0 | AJ58: 2.0611
A59: 2014-10-01T14:14:59.997 | B59: 14:15:00 | C59: 41913.59375 | D59: 0.18701172 | E59: 0.33789062 | F59: 0.31152343 | G59: 34.6318 | H59: 62.06945947 | I59: 57.2258884 | J59: 0.07534276675 | K59: 0.1350344137 | L59: 0.124497045 | M59: 0.4871 | N59: 5.9788 | O59: 459.6566 | P59: 0.5123 | Q59: 0.6848 | R59: 0.6211 | S59: 0.6102 | T59: 0.4121 | U59: 0.1034 | V59: 464.1366 | W59: 0.5219 | X59: 0.6946 | Y59: 0.6293 | Z59: 0.6166 | AA59: 0.4145 | AB59: 0.1039 | AC59: -4.25379559 | AD59: 0 | AE59: 0 | AF59: 0 | AG59: 0 | AH59: 0 | AI59: 0 | AJ59: 2.1797
A60: 2014-10-01T14:29:59.997 | B60: 14:30:00 | C60: 41913.60417 | D60: 0.17578125 | E60: 0.32421875 | F60: 0.31347657 | G60: 32.55208333 | H60: 59.55797933 | I60: 57.58467417 | J60: 0.07217175942 | K60: 0.1320469757 | L60: 0.1276719283 | M60: 0.45893 | N60: 6.1181 | O60: 451.0363 | P60: 0.4993 | Q60: 0.6721 | R60: 0.6136 | S60: 0.6034 | T60: 0.4088 | U60: 0.099 | V60: 454.8282 | W60: 0.5048 | X60: 0.6763 | Y60: 0.6129 | Z60: 0.6025 | AA60: 0.4078 | AB60: 0.0987 | AC60: -3.572632371 | AD60: 0 | AE60: 0 | AF60: 0.000596609 | AG60: 0.000871967 | AH60: 0.000871967 | AI60: 0.000183572 | AJ60: 2.2936
A61: 2014-10-01T14:44:59.997 | B61: 14:45:00 | C61: 41913.61458 | D61: 0.16796875 | E61: 0.29882813 | F61: 0.30566406 | G61: 31.10532407 | H61: 54.89380115 | I61: 56.1495403 | J61: 0.07782599903 | K61: 0.1373451344 | L61: 0.140487013 | M61: 0.4286 | N61: 6.1537 | O61: 399.6778 | P61: 0.4459 | Q61: 0.599 | R61: 0.5444 | S61: 0.5382 | T61: 0.3653 | U61: 0.0841 | V61: 404.1555 | W61: 0.4501 | X61: 0.6018 | Y61: 0.5444 | Z61: 0.5388 | AA61: 0.3653 | AB61: 0.0841 | AC61: -4.18176448 | AD61: 0 | AE61: 0 | AF61: 0 | AG61: 0 | AH61: 0 | AI61: 0 | AJ61: 2.401
A62: 2014-10-01T14:59:59.997 | B62: 15:00:00 | C62: 41913.625 | D62: 0.15087891 | E62: 0.27734375 | F62: 0.2734375 | G62: 27.94053889 | H62: 50.94718714 | I62: 50.22962113 | J62: 0.07625226757 | K62: 0.1390394996 | L62: 0.1370811968 | M62: 0.39624 | N62: 6.0112 | O62: 366.4224 | P62: 0.4035 | Q62: 0.547 | R62: 0.4992 | S62: 0.4971 | T62: 0.34 | U62: 0.074 | V62: 375.4623 | W62: 0.4124 | X62: 0.5568 | Y62: 0.5088 | Z62: 0.5054 | AA62: 0.3448 | AB62: 0.075 | AC62: -8.35729596 | AD62: 0 | AE62: 0 | AF62: 0 | AG62: 0 | AH62: 0 | AI62: 0 | AJ62: 2.4997
A63: 2014-10-01T15:14:59.997 | B63: 15:15:00 | C63: 41913.63542 | D63: 0.12597656 | E63: 0.23828125 | F63: 0.22753906 | G63: 23.32899259 | H63: 43.77152698 | I63: 41.79821998 | J63: 0.1229990314 | K63: 0.2307795933 | L63: 0.2203755928 | M63: 0.362 | N63: 6.3578 | O63: 189.6681 | P63: 0.2639 | Q63: 0.3221 | R63: 0.2704 | S63: 0.2643 | T63: 0.1738 | U63: 0.0371 | V63: 194.4557 | W63: 0.268 | X63: 0.3263 | Y63: 0.2759 | Z63: 0.2688 | AA63: 0.1767 | AB63: 0.0378 | AC63: -4.3737564 | AD63: 0 | AE63: 0 | AF63: 0 | AG63: 0 | AH63: 0 | AI63: 0 | AJ63: 2.5674
A64: 2014-10-01T15:29:59.997 | B64: 15:30:00 | C64: 41913.64583 | D64: 0.0522461 | E64: 0.09179687 | F64: 0.09082031 | G64: 9.675203704 | H64: 16.86280046 | I64: 16.68340941 | J64: 0.04980387059 | K64: 0.08680258913 | L64: 0.08587915964 | M64: 0.32669 | N64: 6.6234 | O64: 194.2661 | P64: 0.2502 | Q64: 0.3151 | R64: 0.2704 | S64: 0.2656 | T64: 0.181 | U64: 0.0425 | V64: 197.0596 | W64: 0.2557 | X64: 0.3221 | Y64: 0.2745 | Z64: 0.2695 | AA64: 0.1829 | AB64: 0.043 | AC64: -2.521034061 | AD64: 0 | AE64: 0 | AF64: 0 | AG64: 0 | AH64: 0 | AI64: 0 | AJ64: 2.6106
A65: 2014-10-01T15:44:59.997 | B65: 15:45:00 | C65: 41913.65625 | D65: 0.06201171 | E65: 0.11621094 | F65: 0.11425782 | G65: 11.48365 | H65: 21.34758944 | I65: 20.98880735 | J65: 0.08036740304 | K65: 0.1493993917 | L65: 0.146888484 | M65: 0.28924 | N65: 6.4744 | O65: 142.8894 | P65: 0.1893 | Q65: 0.2335 | R65: 0.1964 | S65: 0.1936 | T65: 0.1327 | U65: 0.0309 | V65: 145.5681 | W65: 0.1954 | X65: 0.2406 | Y65: 0.2019 | Z65: 0.1988 | AA65: 0.1356 | AB65: 0.0314 | AC65: -2.371594456 | AD65: 0 | AE65: 0 | AF65: 0 | AG65: 0 | AH65: 0 | AI65: 0 | AJ65: 2.6508
A66: 2014-10-01T15:59:59.997 | B66: 16:00:00 | C66: 41913.66667 | D66: 0.04101563 | E66: 0.08105469 | F66: 0.08105468 | G66: 7.595487037 | H66: 14.88949529 | I66: 14.88949346 | J66: 0.06422115211 | K66: 0.1258932492 | L66: 0.1258932336 | M66: 0.2504 | N66: 6.5036 | O66: 118.2708 | P66: 0.1619 | Q66: 0.1956 | R66: 0.1621 | S66: 0.1609 | T66: 0.1103 | U66: 0.025 | V66: 120.6987 | W66: 0.1667 | X66: 0.2026 | Y66: 0.1676 | Z66: 0.1647 | AA66: 0.1127 | AB66: 0.0255 | AC66: -2.10188264 | AD66: 0 | AE66: 0 | AF66: 0 | AG66: 0 | AH66: 0 | AI66: 0 | AJ66: 2.6789
A67: 2014-10-01T16:14:59.997 | B67: 16:15:00 | C67: 41913.67708 | D67: 0.02880859 | E67: 0.06445312 | F67: 0.0625 | G67: =D67*4000/ 21.6 -> 5.334924074 | H67: =E67*4000/21.775 -> 11.83983835 | I67: =F67*4000/21.775 -> 11.48105626 | J67: =IFERROR(G67/$O67,) -> 0.05874354279 | K67: =IFERROR(H67/$O67,) -> 0.1303699998 | L67: =IFERROR(I67/$O67,) -> 0.1264194036 | M67: 0.21037 | N67: 6.6429 | O67: 90.8172 | P67: 0.1249 | Q67: 0.1534 | R67: 0.1265 | S67: 0.1255 | T67: 0.0873 | U67: 0.0193 | V67: 93.7808 | W67: 0.1297 | X67: 0.159 | Y67: 0.1306 | Z67: 0.13 | AA67: 0.0897 | AB67: 0.0198 | AC67: -2.489686876 | AD67: 0 | AE67: 0 | AF67: 0 | AG67: 0 | AH67: 0 | AI67: 0 | AJ67: 2.7051
A68: 2014-10-01T16:29:59.997 | B68: 16:30:00 | C68: 41913.6875 | D68: 0.02197266 | E68: 0.04882813 | F68: 0.05078126 | G68: 4.069011111 | H68: 8.969576119 | I68: 9.328360046 | J68: 0.1198061175 | K68: 0.2640961308 | L68: 0.274660002 | M68: 0.16934 | N68: 6.5749 | O68: 33.9633 | P68: 0.0763 | Q68: 0.0761 | R68: 0.0498 | S68: 0.0477 | T68: 0.0305 | U68: 0.0057 | V68: 34.7169 | W68: 0.0791 | X68: 0.0789 | Y68: 0.0525 | Z68: 0.0496 | AA68: 0.0315 | AB68: 0.0057 | AC68: -0.606643616 | AD68: 0 | AE68: 0 | AF68: 0 | AG68: 0 | AH68: 0 | AI68: 0 | AJ68: 2.7217
A69: 2014-10-01T16:44:59.997 | B69: 16:45:00 | C69: 41913.69792 | D69: 0.0009765600007 | E69: 0.01171875 | F69: 0.01269531 | G69: 0.1808444446 | H69: 2.152698048 | I69: 2.332089093 | J69: 0.0061055049 | K69: 0.07267742458 | L69: 0.07873386111 | M69: 0.12759 | N69: 6.6656 | O69: 29.6199 | P69: 0.0647 | Q69: 0.0649 | R69: 0.0429 | S69: 0.0419 | T69: 0.0267 | U69: 0.0052 | V69: 29.7287 | W69: 0.0668 | X69: 0.0677 | Y69: 0.0443 | Z69: 0.0432 | AA69: 0.0272 | AB69: 0.0054 | AC69: -0.081976575 | AD69: 0 | AE69: 0 | AF69: 0 | AG69: 0 | AH69: 0 | AI69: 0 | AJ69: 2.7291
A70: 2014-10-01T16:59:59.997 | B70: 17:00:00 | C70: 41913.70833 | D70: 0.001953129999 | E70: 0.009765620001 | F70: 0.01074219 | G70: 0.3616907406 | H70: 1.793914122 | I70: 1.973307004 | J70: 0.01381063032 | K70: 0.06849797902 | L70: 0.07534783303 | M70: 0.08551 | N70: 6.6785 | O70: 26.1893 | P70: 0.0531 | Q70: 0.0564 | R70: 0.0375 | S70: 0.0381 | T70: 0.0252 | U70: 0.0039 | V70: 26.3581 | W70: 0.0544 | X70: 0.0578 | Y70: 0.0388 | Z70: 0.0387 | AA70: 0.0252 | AB70: 0.0039 | AC70: -0.113095526 | AD70: 0 | AE70: 0 | AF70: 0 | AG70: 0 | AH70: 0 | AI70: 0 | AJ70: 2.7367
A71: 2014-10-01T17:14:59.997 | B71: 17:15:00 | C71: 41913.71875 | D71: 0 | E71: 0.006835939999 | F71: 0.0078125 | G71: 0 | H71: 1.255740987 | I71: 1.435132032 | J71: 0 | K71: 0.04648998509 | L71: 0.0531313921 | M71: 0.04395 | N71: 6.6591 | O71: 27.011 | P71: 0.0366 | Q71: 0.0452 | R71: 0.0347 | S71: 0.0387 | T71: 0.0286 | U71: 0.0047 | V71: 27.1932 | W71: 0.038 | X71: 0.0466 | Y71: 0.0361 | Z71: 0.0394 | AA71: 0.0286 | AB71: 0.0047 | AC71: -0.09362229 | AD71: 0 | AE71: 0 | AF71: 0 | AG71: 0 | AH71: 0 | AI71: 0 | AJ71: 2.7439
A72: 2014-10-01T17:29:59.997 | B72: 17:30:00 | C72: 41913.72917 | D72: 0 | E72: 0.002929689999 | F72: 0.003906239999 | G72: 0 | H72: 0.5381749712 | I72: 0.717564179 | J72: 0 | K72: 0.06051193217 | L72: 0.08068230084 | M72: 0.00609 | N72: 6.7206 | O72: 8.8937 | P72: 0.0236 | Q72: 0.0241 | R72: 0.0128 | S72: 0.0136 | T72: 0.0076 | U72: 0.001 | V72: 8.7522 | W72: 0.0243 | X72: 0.0255 | Y72: 0.0142 | Z72: 0.0136 | AA72: 0.008 | AB72: 0.001 | AC72: 0.019610409 | AD72: 0 | AE72: 0 | AF72: 0 | AG72: 0 | AH72: 0 | AI72: 0 | AJ72: 2.7472
A73: 2014-10-01T17:44:59.997 | B73: 17:45:00 | C73: 41913.73958 | D73: 0 | E73: 0 | F73: 0 | G73: 0 | H73: 0 | I73: 0 | J73: 0 | K73: 0 | L73: 0 | M73: -0.04885 | N73: 6.6396 | O73: 0 | P73: 0 | Q73: 0 | R73: 0 | S73: 0 | T73: 0 | U73: 0 | V73: 0 | W73: 0 | X73: 0 | Y73: 0 | Z73: 0 | AA73: 0 | AB73: 0 | AC73: 0 | AD73: 0 | AE73: 0 | AF73: 0 | AG73: 0 | AH73: 0 | AI73: 0 | AJ73: 2.7486
A74: 2014-10-01T17:59:59.997 | B74: 18:00:00 | C74: 41913.75 | D74: 0 | E74: 0 | F74: 0 | G74: 0 | H74: 0 | I74: 0 | J74: 0 | K74: 0 | L74: 0 | M74: -0.09288 | N74: 6.7141 | O74: 0 | P74: 0 | Q74: 0 | R74: 0 | S74: 0 | T74: 0 | U74: 0 | V74: 0 | W74: 0 | X74: 0 | Y74: 0 | Z74: 0 | AA74: 0 | AB74: 0 | AC74: 0 | AD74: 0 | AE74: 0 | AF74: 0 | AG74: 0 | AH74: 0 | AI74: 0 | AJ74: 2.7486
A75: 2014-10-01T18:14:59.997 | B75: 18:15:00 | C75: 41913.76042 | D75: 0 | E75: 0 | F75: 0 | G75: 0 | H75: 0 | I75: 0 | J75: 0 | K75: 0 | L75: 0 | M75: -0.13671 | N75: 6.7271 | O75: 0 | P75: 0 | Q75: 0 | R75: 0 | S75: 0 | T75: 0 | U75: 0 | V75: 0 | W75: 0 | X75: 0 | Y75: 0 | Z75: 0 | AA75: 0 | AB75: 0 | AC75: 0 | AD75: 0 | AE75: 0 | AF75: 0 | AG75: 0 | AH75: 0 | AI75: 0 | AJ75: 2.7486
A76: 2014-10-01T18:29:59.997 | B76: 18:30:00 | C76: 41913.77083 | D76: 0 | E76: 0 | F76: 0 | G76: 0 | H76: 0 | I76: 0 | J76: 0 | K76: 0 | L76: 0 | M76: -0.18014 | N76: 6.7563 | O76: 0 | P76: 0 | Q76: 0 | R76: 0 | S76: 0 | T76: 0 | U76: 0 | V76: 0 | W76: 0 | X76: 0 | Y76: 0 | Z76: 0 | AA76: 0 | AB76: 0 | AC76: 0 | AD76: 0 | AE76: 0 | AF76: 0 | AG76: 0 | AH76: 0 | AI76: 0 | AJ76: 2.7486
A77: 2014-10-01T18:44:59.997 | B77: 18:45:00 | C77: 41913.78125 | D77: 0 | E77: 0 | F77: 0 | G77: 0 | H77: 0 | I77: 0 | J77: 0 | K77: 0 | L77: 0 | M77: -0.223 | N77: 6.7141 | O77: 0 | P77: 0 | Q77: 0 | R77: 0 | S77: 0 | T77: 0 | U77: 0 | V77: 0 | W77: 0 | X77: 0 | Y77: 0 | Z77: 0 | AA77: 0 | AB77: 0 | AC77: 0 | AD77: 0 | AE77: 0 | AF77: 0 | AG77: 0 | AH77: 0 | AI77: 0 | AJ77: 2.7486
A78: 2014-10-01T18:59:59.997 | B78: 19:00:00 | C78: 41913.79167 | D78: 0 | E78: 0 | F78: 0 | G78: 0 | H78: 0 | I78: 0 | J78: 0 | K78: 0 | L78: 0 | M78: -0.26509 | N78: 6.8178 | O78: 0 | P78: 0 | Q78: 0 | R78: 0 | S78: 0 | T78: 0 | U78: 0 | V78: 0 | W78: 0 | X78: 0 | Y78: 0 | Z78: 0 | AA78: 0 | AB78: 0 | AC78: 0 | AD78: 0 | AE78: 0 | AF78: 0 | AG78: 0 | AH78: 0 | AI78: 0 | AJ78: 2.7486
A79: 2014-10-01T19:14:59.997 | B79: 19:15:00 | C79: 41913.80208 | D79: 0 | E79: 0 | F79: 0 | G79: 0 | H79: 0 | I79: 0 | J79: 0 | K79: 0 | L79: 0 | M79: -0.30624 | N79: 6.821 | O79: 0 | P79: 0 | Q79: 0 | R79: 0 | S79: 0 | T79: 0 | U79: 0 | V79: 0 | W79: 0 | X79: 0 | Y79: 0 | Z79: 0 | AA79: 0 | AB79: 0 | AC79: 0 | AD79: 0 | AE79: 0 | AF79: 0 | AG79: 0 | AH79: 0 | AI79: 0 | AJ79: 2.7486
A80: 2014-10-01T19:29:59.997 | B80: 19:30:00 | C80: 41913.8125 | D80: 0 | E80: 0 | F80: 0 | G80: 0 | H80: 0 | I80: 0 | J80: 0 | K80: 0 | L80: 0 | M80: -0.34627 | N80: 6.8567 | O80: 0 | P80: 0 | Q80: 0 | R80: 0 | S80: 0 | T80: 0 | U80: 0 | V80: 0 | W80: 0 | X80: 0 | Y80: 0 | Z80: 0 | AA80: 0 | AB80: 0 | AC80: 0 | AD80: 0 | AE80: 0 | AF80: 0 | AG80: 0 | AH80: 0 | AI80: 0 | AJ80: 2.7486
A81: 2014-10-01T19:44:59.997 | B81: 19:45:00 | C81: 41913.82292 | D81: 0 | E81: 0 | F81: 0 | G81: 0 | H81: 0 | I81: 0 | J81: 0 | K81: 0 | L81: 0 | M81: -0.38502 | N81: 6.8567 | O81: 0 | P81: 0 | Q81: 0 | R81: 0 | S81: 0 | T81: 0 | U81: 0 | V81: 0 | W81: 0 | X81: 0 | Y81: 0 | Z81: 0 | AA81: 0 | AB81: 0 | AC81: 0 | AD81: 0 | AE81: 0 | AF81: 0 | AG81: 0 | AH81: 0 | AI81: 0 | AJ81: 2.7486
A82: 2014-10-01T19:59:59.997 | B82: 20:00:00 | C82: 41913.83333 | D82: 0 | E82: 0 | F82: 0 | G82: 0 | H82: 0 | I82: 0 | J82: 0 | K82: 0 | L82: 0 | M82: -0.42231 | N82: 6.902 | O82: 0 | P82: 0 | Q82: 0 | R82: 0 | S82: 0 | T82: 0 | U82: 0 | V82: 0 | W82: 0 | X82: 0 | Y82: 0 | Z82: 0 | AA82: 0 | AB82: 0 | AC82: 0 | AD82: 0 | AE82: 0 | AF82: 0 | AG82: 0 | AH82: 0 | AI82: 0 | AJ82: 2.7486
A83: 2014-10-01T20:14:59.997 | B83: 20:15:00 | C83: 41913.84375 | D83: 0 | E83: 0 | F83: 0 | G83: 0 | H83: 0 | I83: 0 | J83: 0 | K83: 0 | L83: 0 | M83: -0.45798 | N83: 6.9312 | O83: 0 | P83: 0 | Q83: 0 | R83: 0 | S83: 0 | T83: 0 | U83: 0 | V83: 0 | W83: 0 | X83: 0 | Y83: 0 | Z83: 0 | AA83: 0 | AB83: 0 | AC83: 0 | AD83: 0 | AE83: 0 | AF83: 0 | AG83: 0 | AH83: 0 | AI83: 0 | AJ83: 2.7486
A84: 2014-10-01T20:29:59.997 | B84: 20:30:00 | C84: 41913.85417 | D84: 0 | E84: 0 | F84: 0 | G84: 0 | H84: 0 | I84: 0 | J84: 0 | K84: 0 | L84: 0 | M84: -0.49188 | N84: 6.8729 | O84: 0 | P84: 0 | Q84: 0 | R84: 0 | S84: 0 | T84: 0 | U84: 0 | V84: 0 | W84: 0 | X84: 0 | Y84: 0 | Z84: 0 | AA84: 0 | AB84: 0 | AC84: 0 | AD84: 0 | AE84: 0 | AF84: 0 | AG84: 0 | AH84: 0 | AI84: 0 | AJ84: 2.7486
A85: 2014-10-01T20:44:59.997 | B85: 20:45:00 | C85: 41913.86458 | D85: 0 | E85: 0 | F85: 0 | G85: 0 | H85: 0 | I85: 0 | J85: 0 | K85: 0 | L85: 0 | M85: -0.52388 | N85: 6.8794 | O85: 0 | P85: 0 | Q85: 0 | R85: 0 | S85: 0 | T85: 0 | U85: 0 | V85: 0 | W85: 0 | X85: 0 | Y85: 0 | Z85: 0 | AA85: 0 | AB85: 0 | AC85: 0 | AD85: 0 | AE85: 0 | AF85: 0 | AG85: 0 | AH85: 0 | AI85: 0 | AJ85: 2.7486
A86: 2014-10-01T20:59:59.997 | B86: 21:00:00 | C86: 41913.875 | D86: 0 | E86: 0 | F86: 0 | G86: 0 | H86: 0 | I86: 0 | J86: 0 | K86: 0 | L86: 0 | M86: -0.55382 | N86: 6.915 | O86: 0 | P86: 0 | Q86: 0 | R86: 0 | S86: 0 | T86: 0 | U86: 0 | V86: 0 | W86: 0 | X86: 0 | Y86: 0 | Z86: 0 | AA86: 0 | AB86: 0 | AC86: 0 | AD86: 0 | AE86: 0 | AF86: 0 | AG86: 0 | AH86: 0 | AI86: 0 | AJ86: 2.7486
A87: 2014-10-01T21:14:59.997 | B87: 21:15:00 | C87: 41913.88542 | D87: 0 | E87: 0 | F87: 0 | G87: 0 | H87: 0 | I87: 0 | J87: 0 | K87: 0 | L87: 0 | M87: -0.58159 | N87: 6.9344 | O87: 0 | P87: 0 | Q87: 0 | R87: 0 | S87: 0 | T87: 0 | U87: 0 | V87: 0 | W87: 0 | X87: 0 | Y87: 0 | Z87: 0 | AA87: 0 | AB87: 0 | AC87: 0 | AD87: 0 | AE87: 0 | AF87: 0 | AG87: 0 | AH87: 0 | AI87: 0 | AJ87: 2.7486
A88: 2014-10-01T21:29:59.997 | B88: 21:30:00 | C88: 41913.89583 | D88: 0 | E88: 0 | F88: 0 | G88: 0 | H88: 0 | I88: 0 | J88: 0 | K88: 0 | L88: 0 | M88: -0.60706 | N88: 6.9701 | O88: 0 | P88: 0 | Q88: 0 | R88: 0 | S88: 0 | T88: 0 | U88: 0 | V88: 0 | W88: 0 | X88: 0 | Y88: 0 | Z88: 0 | AA88: 0 | AB88: 0 | AC88: 0 | AD88: 0 | AE88: 0 | AF88: 0 | AG88: 0 | AH88: 0 | AI88: 0 | AJ88: 2.7486
A89: 2014-10-01T21:44:59.997 | B89: 21:45:00 | C89: 41913.90625 | D89: 0 | E89: 0 | F89: 0 | G89: 0 | H89: 0 | I89: 0 | J89: 0 | K89: 0 | L89: 0 | M89: -0.63013 | N89: 6.9636 | O89: 0 | P89: 0 | Q89: 0 | R89: 0 | S89: 0 | T89: 0 | U89: 0 | V89: 0 | W89: 0 | X89: 0 | Y89: 0 | Z89: 0 | AA89: 0 | AB89: 0 | AC89: 0 | AD89: 0 | AE89: 0 | AF89: 0 | AG89: 0 | AH89: 0 | AI89: 0 | AJ89: 2.7486
A90: 2014-10-01T21:59:59.997 | B90: 22:00:00 | C90: 41913.91667 | D90: 0 | E90: 0 | F90: 0 | G90: 0 | H90: 0 | I90: 0 | J90: 0 | K90: 0 | L90: 0 | M90: -0.65069 | N90: 6.9895 | O90: 0 | P90: 0 | Q90: 0 | R90: 0 | S90: 0 | T90: 0 | U90: 0 | V90: 0 | W90: 0 | X90: 0 | Y90: 0 | Z90: 0 | AA90: 0 | AB90: 0 | AC90: 0 | AD90: 0 | AE90: 0 | AF90: 0 | AG90: 0 | AH90: 0 | AI90: 0 | AJ90: 2.7486
A91: 2014-10-01T22:14:59.997 | B91: 22:15:00 | C91: 41913.92708 | D91: 0 | E91: 0 | F91: 0 | G91: 0 | H91: 0 | I91: 0 | J91: 0 | K91: 0 | L91: 0 | M91: -0.66866 | N91: 7.0024 | O91: 0 | P91: 0 | Q91: 0 | R91: 0 | S91: 0 | T91: 0 | U91: 0 | V91: 0 | W91: 0 | X91: 0 | Y91: 0 | Z91: 0 | AA91: 0 | AB91: 0 | AC91: 0 | AD91: 0 | AE91: 0 | AF91: 0 | AG91: 0 | AH91: 0 | AI91: 0 | AJ91: 2.7486
A92: 2014-10-01T22:29:59.997 | B92: 22:30:00 | C92: 41913.9375 | D92: 0 | E92: 0 | F92: 0 | G92: 0 | H92: 0 | I92: 0 | J92: 0 | K92: 0 | L92: 0 | M92: -0.68397 | N92: 6.9927 | O92: 0 | P92: 0 | Q92: 0 | R92: 0 | S92: 0 | T92: 0 | U92: 0 | V92: 0 | W92: 0 | X92: 0 | Y92: 0 | Z92: 0 | AA92: 0 | AB92: 0 | AC92: 0 | AD92: 0 | AE92: 0 | AF92: 0 | AG92: 0 | AH92: 0 | AI92: 0 | AJ92: 2.7486
A93: 2014-10-01T22:44:59.997 | B93: 22:45:00 | C93: 41913.94792 | D93: 0 | E93: 0 | F93: 0 | G93: 0 | H93: 0 | I93: 0 | J93: 0 | K93: 0 | L93: 0 | M93: -0.69654 | N93: 6.8664 | O93: 0 | P93: 0 | Q93: 0 | R93: 0 | S93: 0 | T93: 0 | U93: 0 | V93: 0 | W93: 0 | X93: 0 | Y93: 0 | Z93: 0 | AA93: 0 | AB93: 0 | AC93: 0 | AD93: 0 | AE93: 0 | AF93: 0 | AG93: 0 | AH93: 0 | AI93: 0 | AJ93: 2.7486
A94: 2014-10-01T22:59:59.997 | B94: 23:00:00 | C94: 41913.95833 | D94: 0 | E94: 0 | F94: 0 | G94: 0 | H94: 0 | I94: 0 | J94: 0 | K94: 0 | L94: 0 | M94: -0.70632 | N94: 6.9279 | O94: 0 | P94: 0 | Q94: 0 | R94: 0 | S94: 0 | T94: 0 | U94: 0 | V94: 0 | W94: 0 | X94: 0 | Y94: 0 | Z94: 0 | AA94: 0 | AB94: 0 | AC94: 0 | AD94: 0 | AE94: 0 | AF94: 0 | AG94: 0 | AH94: 0 | AI94: 0 | AJ94: 2.7486
A95: 2014-10-01T23:14:59.997 | B95: 23:15:00 | C95: 41913.96875 | D95: 0 | E95: 0 | F95: 0 | G95: 0 | H95: 0 | I95: 0 | J95: 0 | K95: 0 | L95: 0 | M95: -0.71328 | N95: 6.983 | O95: 0 | P95: 0 | Q95: 0 | R95: 0 | S95: 0 | T95: 0 | U95: 0 | V95: 0 | W95: 0 | X95: 0 | Y95: 0 | Z95: 0 | AA95: 0 | AB95: 0 | AC95: 0 | AD95: 0 | AE95: 0 | AF95: 0 | AG95: 0 | AH95: 0 | AI95: 0 | AJ95: 2.7486
A96: 2014-10-01T23:29:59.997 | B96: 23:30:00 | C96: 41913.97917 | D96: 0 | E96: 0 | F96: 0 | G96: 0 | H96: 0 | I96: 0 | J96: 0 | K96: 0 | L96: 0 | M96: -0.71737 | N96: 6.996 | O96: 0 | P96: 0 | Q96: 0 | R96: 0 | S96: 0 | T96: 0 | U96: 0 | V96: 0 | W96: 0 | X96: 0 | Y96: 0 | Z96: 0 | AA96: 0 | AB96: 0 | AC96: 0 | AD96: 0 | AE96: 0 | AF96: 0 | AG96: 0 | AH96: 0 | AI96: 0 | AJ96: 2.7486
A97: 2014-10-01T23:44:59.997 | B97: 23:45:00 | C97: 41913.98958 | D97: 0 | E97: 0 | F97: 0 | G97: 0 | H97: 0 | I97: 0 | J97: 0 | K97: 0 | L97: 0 | M97: -0.71859 | N97: 6.9701 | O97: 0 | P97: 0 | Q97: 0 | R97: 0 | S97: 0 | T97: 0 | U97: 0 | V97: 0 | W97: 0 | X97: 0 | Y97: 0 | Z97: 0 | AA97: 0 | AB97: 0 | AC97: 0 | AD97: 0 | AE97: 0 | AF97: 0 | AG97: 0 | AH97: 0 | AI97: 0 | AJ97: 2.7486 | AK97: 3.92578125 | AL97: 7.389648438 | AM97: 7.416015625 | AN97: 0.06612425297 | AO97: 0.1234678999 | AP97: 0.1239084527
A98: 2014-10-01T23:59:59.997 | B98: 00:00:00 | C98: 41914 | D98: 0 | E98: 0 | F98: 0 | G98: 0 | H98: 0 | I98: 0 | J98: 0 | K98: 0 | L98: 0 | M98: -0.71694 | N98: 7.0186 | O98: 0 | P98: 0 | Q98: 0 | R98: 0 | S98: 0 | T98: 0 | U98: 0 | V98: 0 | W98: 0 | X98: 0 | Y98: 0 | Z98: 0 | AA98: 0 | AB98: 0 | AC98: 0 | AD98: 0 | AE98: 0 | AF98: 0 | AG98: 0 | AH98: 0 | AI98: 0 | AJ98: 0
A99: 2014-10-02T00:14:59.997 | B99: 00:15:00 | C99: 41914.01042 | D99: 0 | E99: 0 | F99: 0 | G99: 0 | H99: 0 | I99: 0 | J99: 0 | K99: 0 | L99: 0 | M99: -0.7124 | N99: 7.0219 | O99: 0 | P99: 0 | Q99: 0 | R99: 0 | S99: 0 | T99: 0 | U99: 0 | V99: 0 | W99: 0 | X99: 0 | Y99: 0 | Z99: 0 | AA99: 0 | AB99: 0 | AC99: 0 | AD99: 0 | AE99: 0 | AF99: 0 | AG99: 0 | AH99: 0 | AI99: 0 | AJ99: 0
A100: 2014-10-02T00:29:59.997 | B100: 00:30:00 | C100: 41914.02083 | D100: 0 | E100: 0 | F100: 0 | G100: 0 | H100: 0 | I100: 0 | J100: 0 | K100: 0 | L100: 0 | M100: -0.70502 | N100: 7.0057 | O100: 0 | P100: 0 | Q100: 0 | R100: 0 | S100: 0 | T100: 0 | U100: 0 | V100: 0 | W100: 0 | X100: 0 | Y100: 0 | Z100: 0 | AA100: 0 | AB100: 0 | AC100: 0 | AD100: 0 | AE100: 0 | AF100: 0 | AG100: 0 | AH100: 0 | AI100: 0 | AJ100: 0
A101: 2014-10-02T00:44:59.997 | B101: 00:45:00 | C101: 41914.03125 | D101: 0 | E101: 0 | F101: 0 | G101: 0 | H101: 0 | I101: 0 | J101: 0 | K101: 0 | L101: 0 | M101: -0.69481 | N101: 7.0608 | O101: 0 | P101: 0 | Q101: 0 | R101: 0 | S101: 0 | T101: 0 | U101: 0 | V101: 0 | W101: 0 | X101: 0 | Y101: 0 | Z101: 0 | AA101: 0 | AB101: 0 | AC101: 0 | AD101: 0 | AE101: 0 | AF101: 0 | AG101: 0 | AH101: 0 | AI101: 0 | AJ101: 0
A102: 2014-10-02T00:59:59.997 | B102: 01:00:00 | C102: 41914.04167 | D102: 0 | E102: 0 | F102: 0 | G102: 0 | H102: 0 | I102: 0 | J102: 0 | K102: 0 | L102: 0 | M102: -0.68183 | N102: 7.0251 | O102: 0 | P102: 0 | Q102: 0 | R102: 0 | S102: 0 | T102: 0 | U102: 0 | V102: 0 | W102: 0 | X102: 0 | Y102: 0 | Z102: 0 | AA102: 0 | AB102: 0 | AC102: 0 | AD102: 0 | AE102: 0 | AF102: 0 | AG102: 0 | AH102: 0 | AI102: 0 | AJ102: 0
A103: 2014-10-02T01:14:59.997 | B103: 01:15:00 | C103: 41914.05208 | D103: 0 | E103: 0 | F103: 0 | G103: 0 | H103: 0 | I103: 0 | J103: 0 | K103: 0 | L103: 0 | M103: -0.66612 | N103: 7.0964 | O103: 0 | P103: 0 | Q103: 0 | R103: 0 | S103: 0 | T103: 0 | U103: 0 | V103: 0 | W103: 0 | X103: 0 | Y103: 0 | Z103: 0 | AA103: 0 | AB103: 0 | AC103: 0 | AD103: 0 | AE103: 0 | AF103: 0 | AG103: 0 | AH103: 0 | AI103: 0 | AJ103: 0
A104: 2014-10-02T01:29:59.997 | B104: 01:30:00 | C104: 41914.0625 | D104: 0 | E104: 0 | F104: 0 | G104: 0 | H104: 0 | I104: 0 | J104: 0 | K104: 0 | L104: 0 | M104: -0.64776 | N104: 7.132 | O104: 0 | P104: 0 | Q104: 0 | R104: 0 | S104: 0 | T104: 0 | U104: 0 | V104: 0 | W104: 0 | X104: 0 | Y104: 0 | Z104: 0 | AA104: 0 | AB104: 0 | AC104: 0 | AD104: 0 | AE104: 0 | AF104: 0 | AG104: 0 | AH104: 0 | AI104: 0 | AJ104: 0
A105: 2014-10-02T01:44:59.997 | B105: 01:45:00 | C105: 41914.07292 | D105: 0 | E105: 0 | F105: 0 | G105: 0 | H105: 0 | I105: 0 | J105: 0 | K105: 0 | L105: 0 | M105: -0.62683 | N105: 7.1709 | O105: 0 | P105: 0 | Q105: 0 | R105: 0 | S105: 0 | T105: 0 | U105: 0 | V105: 0 | W105: 0 | X105: 0 | Y105: 0 | Z105: 0 | AA105: 0 | AB105: 0 | AC105: 0 | AD105: 0 | AE105: 0 | AF105: 0 | AG105: 0 | AH105: 0 | AI105: 0 | AJ105: 0
A106: 2014-10-02T01:59:59.997 | B106: 02:00:00 | C106: 41914.08333 | D106: 0 | E106: 0 | F106: 0 | G106: 0 | H106: 0 | I106: 0 | J106: 0 | K106: 0 | L106: 0 | M106: -0.60341 | N106: 7.1126 | O106: 0 | P106: 0 | Q106: 0 | R106: 0 | S106: 0 | T106: 0 | U106: 0 | V106: 0 | W106: 0 | X106: 0 | Y106: 0 | Z106: 0 | AA106: 0 | AB106: 0 | AC106: 0 | AD106: 0 | AE106: 0 | AF106: 0 | AG106: 0 | AH106: 0 | AI106: 0 | AJ106: 0
A107: 2014-10-02T02:14:59.997 | B107: 02:15:00 | C107: 41914.09375 | D107: 0 | E107: 0 | F107: 0 | G107: 0 | H107: 0 | I107: 0 | J107: 0 | K107: 0 | L107: 0 | M107: -0.5776 | N107: 7.1255 | O107: 0 | P107: 0 | Q107: 0 | R107: 0 | S107: 0 | T107: 0 | U107: 0 | V107: 0 | W107: 0 | X107: 0 | Y107: 0 | Z107: 0 | AA107: 0 | AB107: 0 | AC107: 0 | AD107: 0 | AE107: 0 | AF107: 0 | AG107: 0 | AH107: 0 | AI107: 0 | AJ107: 0
A108: 2014-10-02T02:29:59.997 | B108: 02:30:00 | C108: 41914.10417 | D108: 0 | E108: 0 | F108: 0 | G108: 0 | H108: 0 | I108: 0 | J108: 0 | K108: 0 | L108: 0 | M108: -0.54952 | N108: 7.0996 | O108: 0 | P108: 0 | Q108: 0 | R108: 0 | S108: 0 | T108: 0 | U108: 0 | V108: 0 | W108: 0 | X108: 0 | Y108: 0 | Z108: 0 | AA108: 0 | AB108: 0 | AC108: 0 | AD108: 0 | AE108: 0 | AF108: 0 | AG108: 0 | AH108: 0 | AI108: 0 | AJ108: 0
A109: 2014-10-02T02:44:59.997 | B109: 02:45:00 | C109: 41914.11458 | D109: 0 | E109: 0 | F109: 0 | G109: 0 | H109: 0 | I109: 0 | J109: 0 | K109: 0 | L109: 0 | M109: -0.51929 | N109: 7.064 | O109: 0 | P109: 0 | Q109: 0 | R109: 0 | S109: 0 | T109: 0 | U109: 0 | V109: 0 | W109: 0 | X109: 0 | Y109: 0 | Z109: 0 | AA109: 0 | AB109: 0 | AC109: 0 | AD109: 0 | AE109: 0 | AF109: 0 | AG109: 0 | AH109: 0 | AI109: 0 | AJ109: 0
A110: 2014-10-02T02:59:59.997 | B110: 03:00:00 | C110: 41914.125 | D110: 0 | E110: 0 | F110: 0 | G110: 0 | H110: 0 | I110: 0 | J110: 0 | K110: 0 | L110: 0 | M110: -0.48703 | N110: 7.1385 | O110: 0 | P110: 0 | Q110: 0 | R110: 0 | S110: 0 | T110: 0 | U110: 0 | V110: 0 | W110: 0 | X110: 0 | Y110: 0 | Z110: 0 | AA110: 0 | AB110: 0 | AC110: 0 | AD110: 0 | AE110: 0 | AF110: 0 | AG110: 0 | AH110: 0 | AI110: 0 | AJ110: 0
A111: 2014-10-02T03:14:59.997 | B111: 03:15:00 | C111: 41914.13542 | D111: 0 | E111: 0 | F111: 0 | G111: 0 | H111: 0 | I111: 0 | J111: 0 | K111: 0 | L111: 0 | M111: -0.45289 | N111: 7.1579 | O111: 0 | P111: 0 | Q111: 0 | R111: 0 | S111: 0 | T111: 0 | U111: 0 | V111: 0 | W111: 0 | X111: 0 | Y111: 0 | Z111: 0 | AA111: 0 | AB111: 0 | AC111: 0 | AD111: 0 | AE111: 0 | AF111: 0 | AG111: 0 | AH111: 0 | AI111: 0 | AJ111: 0
A112: 2014-10-02T03:29:59.997 | B112: 03:30:00 | C112: 41914.14583 | D112: 0 | E112: 0 | F112: 0 | G112: 0 | H112: 0 | I112: 0 | J112: 0 | K112: 0 | L112: 0 | M112: -0.41701 | N112: 7.1158 | O112: 0 | P112: 0 | Q112: 0 | R112: 0 | S112: 0 | T112: 0 | U112: 0 | V112: 0 | W112: 0 | X112: 0 | Y112: 0 | Z112: 0 | AA112: 0 | AB112: 0 | AC112: 0 | AD112: 0 | AE112: 0 | AF112: 0 | AG112: 0 | AH112: 0 | AI112: 0 | AJ112: 0
A113: 2014-10-02T03:44:59.997 | B113: 03:45:00 | C113: 41914.15625 | D113: 0 | E113: 0 | F113: 0 | G113: 0 | H113: 0 | I113: 0 | J113: 0 | K113: 0 | L113: 0 | M113: -0.37955 | N113: 7.1677 | O113: 0 | P113: 0 | Q113: 0 | R113: 0 | S113: 0 | T113: 0 | U113: 0 | V113: 0 | W113: 0 | X113: 0 | Y113: 0 | Z113: 0 | AA113: 0 | AB113: 0 | AC113: 0 | AD113: 0 | AE113: 0 | AF113: 0 | AG113: 0 | AH113: 0 | AI113: 0 | AJ113: 0
A114: 2014-10-02T03:59:59.997 | B114: 04:00:00 | C114: 41914.16667 | D114: 0 | E114: 0 | F114: 0 | G114: 0 | H114: 0 | I114: 0 | J114: 0 | K114: 0 | L114: 0 | M114: -0.34066 | N114: 7.213 | O114: 0 | P114: 0 | Q114: 0 | R114: 0 | S114: 0 | T114: 0 | U114: 0 | V114: 0 | W114: 0 | X114: 0 | Y114: 0 | Z114: 0 | AA114: 0 | AB114: 0 | AC114: 0 | AD114: 0 | AE114: 0 | AF114: 0 | AG114: 0 | AH114: 0 | AI114: 0 | AJ114: 0
A115: 2014-10-02T04:14:59.997 | B115: 04:15:00 | C115: 41914.17708 | D115: 0 | E115: 0 | F115: 0 | G115: 0 | H115: 0 | I115: 0 | J115: 0 | K115: 0 | L115: 0 | M115: -0.30051 | N115: 7.2033 | O115: 0 | P115: 0 | Q115: 0 | R115: 0 | S115: 0 | T115: 0 | U115: 0 | V115: 0 | W115: 0 | X115: 0 | Y115: 0 | Z115: 0 | AA115: 0 | AB115: 0 | AC115: 0 | AD115: 0 | AE115: 0 | AF115: 0 | AG115: 0 | AH115: 0 | AI115: 0 | AJ115: 0
A116: 2014-10-02T04:29:59.997 | B116: 04:30:00 | C116: 41914.1875 | D116: 0 | E116: 0 | F116: 0 | G116: 0 | H116: 0 | I116: 0 | J116: 0 | K116: 0 | L116: 0 | M116: -0.25928 | N116: 7.2292 | O116: 0 | P116: 0 | Q116: 0 | R116: 0 | S116: 0 | T116: 0 | U116: 0 | V116: 0 | W116: 0 | X116: 0 | Y116: 0 | Z116: 0 | AA116: 0 | AB116: 0 | AC116: 0 | AD116: 0 | AE116: 0 | AF116: 0 | AG116: 0 | AH116: 0 | AI116: 0 | AJ116: 0
A117: 2014-10-02T04:44:59.997 | B117: 04:45:00 | C117: 41914.19792 | D117: 0 | E117: 0 | F117: 0 | G117: 0 | H117: 0 | I117: 0 | J117: 0 | K117: 0 | L117: 0 | M117: -0.21714 | N117: 7.2584 | O117: 0 | P117: 0 | Q117: 0 | R117: 0 | S117: 0 | T117: 0 | U117: 0 | V117: 0 | W117: 0 | X117: 0 | Y117: 0 | Z117: 0 | AA117: 0 | AB117: 0 | AC117: 0 | AD117: 0 | AE117: 0 | AF117: 0 | AG117: 0 | AH117: 0 | AI117: 0 | AJ117: 0
A118: 2014-10-02T04:59:59.997 | B118: 05:00:00 | C118: 41914.20833 | D118: 0 | E118: 0 | F118: 0 | G118: 0 | H118: 0 | I118: 0 | J118: 0 | K118: 0 | L118: 0 | M118: -0.17428 | N118: 7.0964 | O118: 0 | P118: 0 | Q118: 0 | R118: 0 | S118: 0 | T118: 0 | U118: 0 | V118: 0 | W118: 0 | X118: 0 | Y118: 0 | Z118: 0 | AA118: 0 | AB118: 0 | AC118: 0 | AD118: 0 | AE118: 0 | AF118: 0 | AG118: 0 | AH118: 0 | AI118: 0 | AJ118: 0
A119: 2014-10-02T05:14:59.997 | B119: 05:15:00 | C119: 41914.21875 | D119: 0 | E119: 0 | F119: 0 | G119: 0 | H119: 0 | I119: 0 | J119: 0 | K119: 0 | L119: 0 | M119: -0.13087 | N119: 7.2162 | O119: 0 | P119: 0 | Q119: 0 | R119: 0 | S119: 0 | T119: 0 | U119: 0 | V119: 0 | W119: 0 | X119: 0 | Y119: 0 | Z119: 0 | AA119: 0 | AB119: 0 | AC119: 0 | AD119: 0 | AE119: 0 | AF119: 0 | AG119: 0 | AH119: 0 | AI119: 0 | AJ119: 0
A120: 2014-10-02T05:29:59.997 | B120: 05:30:00 | C120: 41914.22917 | D120: 0 | E120: 0 | F120: 0 | G120: 0 | H120: 0 | I120: 0 | J120: 0 | K120: 0 | L120: 0 | M120: -0.0871 | N120: 7.1644 | O120: 0 | P120: 0 | Q120: 0 | R120: 0 | S120: 0 | T120: 0 | U120: 0 | V120: 0 | W120: 0 | X120: 0 | Y120: 0 | Z120: 0 | AA120: 0 | AB120: 0 | AC120: 0 | AD120: 0 | AE120: 0 | AF120: 0 | AG120: 0 | AH120: 0 | AI120: 0 | AJ120: 0
A121: 2014-10-02T05:44:59.997 | B121: 05:45:00 | C121: 41914.23958 | D121: 0 | E121: 0 | F121: 0 | G121: 0 | H121: 0 | I121: 0 | J121: 0 | K121: 0 | L121: 0 | M121: -0.04316 | N121: 7.2357 | O121: 0 | P121: 0 | Q121: 0 | R121: 0 | S121: 0 | T121: 0 | U121: 0 | V121: 0 | W121: 0 | X121: 0 | Y121: 0 | Z121: 0 | AA121: 0 | AB121: 0 | AC121: 0 | AD121: 0 | AE121: 0 | AF121: 0 | AG121: 0 | AH121: 0 | AI121: 0 | AJ121: 0
A122: 2014-10-02T05:59:59.997 | B122: 06:00:00 | C122: 41914.25 | D122: 0 | E122: 0 | F122: 0 | G122: 0 | H122: 0 | I122: 0 | J122: 0 | K122: 0 | L122: 0 | M122: 0.01037 | N122: 7.2551 | O122: 0 | P122: 0 | Q122: 0 | R122: 0 | S122: 0 | T122: 0 | U122: 0 | V122: 0 | W122: 0 | X122: 0 | Y122: 0 | Z122: 0 | AA122: 0 | AB122: 0 | AC122: 0 | AD122: 0 | AE122: 0 | AF122: 0 | AG122: 0 | AH122: 0 | AI122: 0 | AJ122: 0
A123: 2014-10-02T06:14:59.997 | B123: 06:15:00 | C123: 41914.26042 | D123: 0 | E123: 0 | F123: 0 | G123: 0 | H123: 0 | I123: 0 | J123: 0 | K123: 0 | L123: 0 | M123: 0.04899 | N123: 7.1677 | O123: 0.97 | P123: 0.0031 | Q123: 0.0044 | R123: 0.0018 | S123: 0.004 | T123: 0.0028 | U123: 0.0002 | V123: 0.9799 | W123: 0.0038 | X123: 0.0044 | Y123: 0.0032 | Z123: 0.004 | AA123: 0.0028 | AB123: 0.0002 | AC123: -0.046618884 | AD123: 0 | AE123: 0 | AF123: 0 | AG123: 0 | AH123: 0 | AI123: 0 | AJ123: 0
A124: 2014-10-02T06:29:59.997 | B124: 06:30:00 | C124: 41914.27083 | D124: 0 | E124: 0 | F124: 0 | G124: 0 | H124: 0 | I124: 0 | J124: 0 | K124: 0 | L124: 0 | M124: 0.09055 | N124: 7.3458 | O124: 9.3974 | P124: 0.0154 | Q124: 0.0185 | R124: 0.0114 | S124: 0.0156 | T124: 0.0114 | U124: 0.0005 | V124: 9.1737 | W124: 0.0161 | X124: 0.0199 | Y124: 0.0128 | Z124: 0.0162 | AA124: 0.0119 | AB124: 0.0007 | AC124: 0.413406025 | AD124: 0 | AE124: 0 | AF124: 0 | AG124: 0 | AH124: 0 | AI124: 0 | AJ124: 0.0011
A125: 2014-10-02T06:44:59.997 | B125: 06:45:00 | C125: 41914.28125 | D125: 0 | E125: 0 | F125: 0 | G125: 0 | H125: 0 | I125: 0 | J125: 0 | K125: 0 | L125: 0 | M125: 0.13247 | N125: 7.3426 | O125: 23.1564 | P125: 0.0346 | Q125: 0.0424 | R125: 0.0306 | S125: 0.0355 | T125: 0.0272 | U125: 0.0012 | V125: 23.3922 | W125: 0.036 | X125: 0.0438 | Y125: 0.0306 | Z125: 0.0368 | AA125: 0.0286 | AB125: 0.0012 | AC125: -0.344885645 | AD125: 0 | AE125: 0 | AF125: 0 | AG125: 0 | AH125: 0 | AI125: 0 | AJ125: 0.0049
A126: 2014-10-02T06:59:59.997 | B126: 07:00:00 | C126: 41914.29167 | D126: 0 | E126: 0.001953120001 | F126: 0.003906260001 | G126: 0 | H126: 0.3587820898 | I126: 0.7175678532 | J126: 0 | K126: 0.007722203947 | L126: 0.01544448696 | M126: 0.17398 | N126: 7.2713 | O126: 46.4611 | P126: 0.0579 | Q126: 0.0747 | R126: 0.0594 | S126: 0.0689 | T126: 0.0534 | U126: 0.0027 | V126: 47.3412 | W126: 0.0599 | X126: 0.0775 | Y126: 0.0608 | Z126: 0.0702 | AA126: 0.0549 | AB126: 0.0029 | AC126: -1.155905722 | AD126: 0 | AE126: 0 | AF126: 0 | AG126: 0 | AH126: 0 | AI126: 0 | AJ126: 0.0136
A127: 2014-10-02T07:14:59.997 | B127: 07:15:00 | C127: 41914.30208 | D127: 0 | E127: 0.0078125 | F127: 0.01855468 | G127: 0 | H127: 1.435132032 | I127: 3.408437199 | J127: 0 | K127: 0.01819686348 | L127: 0.0432175333 | M127: 0.21471 | N127: 7.0316 | O127: 78.867 | P127: 0.0873 | Q127: 0.1183 | R127: 0.1032 | S127: 0.1159 | T127: 0.0883 | U127: 0.0059 | V127: 80.4847 | W127: 0.09 | X127: 0.1211 | Y127: 0.106 | Z127: 0.1178 | AA127: 0.0897 | AB127: 0.0062 | AC127: -1.996416522 | AD127: 0 | AE127: 0 | AF127: 0 | AG127: 0 | AH127: 0 | AI127: 0 | AJ127: 0.0293
A128: 2014-10-02T07:29:59.997 | B128: 07:30:00 | C128: 41914.3125 | D128: 0.00634765 | E128: 0.01464844 | F128: 0.03613282 | G128: 1.175490741 | H128: 2.690873019 | I128: 6.637487026 | J128: 0.009858819756 | K128: 0.02256830374 | L128: 0.05566848463 | M128: 0.25442 | N128: 6.834 | O128: 119.2324 | P128: 0.1222 | Q128: 0.1731 | R128: 0.1594 | S128: 0.1718 | T128: 0.1289 | U128: 0.0111 | V128: 121.2615 | W128: 0.1256 | X128: 0.1759 | Y128: 0.1608 | Z128: 0.1744 | AA128: 0.1298 | AB128: 0.0111 | AC128: -2.404345326 | AD128: 0 | AE128: 0 | AF128: 0 | AG128: 0 | AH128: 0 | AI128: 0 | AJ128: 0.0547
A129: 2014-10-02T07:44:59.997 | B129: 07:45:00 | C129: 41914.32292 | D129: 0.00976563 | E129: 0.02246094 | F129: 0.06347656 | G129: 1.80845 | H129: 4.126005052 | I129: 11.6604473 | J129: 0.01142566698 | K129: 0.02606782587 | L129: 0.07366993158 | M129: 0.29289 | N129: 6.7692 | O129: 158.2796 | P129: 0.1605 | Q129: 0.2293 | R129: 0.2115 | S129: 0.2245 | T129: 0.1652 | U129: 0.0168 | V129: 159.5966 | W129: 0.1653 | X129: 0.2335 | Y129: 0.2156 | Z129: 0.2271 | AA129: 0.1657 | AB129: 0.0168 | AC129: -1.516027929 | AD129: 0 | AE129: 0 | AF129: 0 | AG129: 0 | AH129: 0 | AI129: 0 | AJ129: 0.0898
A130: 2014-10-02T07:59:59.997 | B130: 08:00:00 | C130: 41914.33333 | D130: 0.01513672 | E130: 0.04882812 | F130: 0.08984375 | G130: 2.803096296 | H130: 8.969574283 | I130: 16.50401837 | J130: 0.01450671512 | K130: 0.04641976056 | L130: 0.08541236817 | M130: 0.32994 | N130: 6.7951 | O130: 193.2275 | P130: 0.2002 | Q130: 0.2813 | R130: 0.2608 | S130: 0.2701 | T130: 0.1948 | U130: 0.0232 | V130: 194.9992 | W130: 0.2057 | X130: 0.287 | Y130: 0.2635 | Z130: 0.2727 | AA130: 0.1953 | AB130: 0.0235 | AC130: -1.995741072 | AD130: 0 | AE130: 0 | AF130: 0 | AG130: 0 | AH130: 0 | AI130: 0 | AJ130: 0.134
A131: 2014-10-02T08:14:59.997 | B131: 08:15:00 | C131: 41914.34375 | D131: 0.02783203 | E131: 0.08105469 | F131: 0.1171875 | G131: =D131*4000/ 21.6 -> 5.15407963 | H131: =E131*4000/21.775 -> 14.88949529 | I131: =F131*4000/21.775 -> 21.52698048 | J131: =IFERROR(G131/$O131,) -> 0.02258984906 | K131: =IFERROR(H131/$O131,) -> 0.06525926554 | L131: =IFERROR(I131/$O131,) -> 0.09435074245 | M131: 0.36483 | N131: 6.7271 | O131: 228.1591 | P131: 0.2406 | Q131: 0.3362 | R131: 0.3101 | S131: 0.3171 | T131: 0.2249 | U131: 0.0312 | V131: 230.3843 | W131: 0.2468 | X131: 0.3418 | Y131: 0.3128 | Z131: 0.3196 | AA131: 0.2254 | AB131: 0.0312 | AC131: -2.460450003 | AD131: 0 | AE131: 0 | AF131: 0 | AG131: 0 | AH131: 0 | AI131: 0 | AJ131: 0.1868
A132: 2014-10-02T08:29:59.997 | B132: 08:30:00 | C132: 41914.35417 | D132: 0.04589843 | E132: 0.09863281 | F132: 0.1484375 | G132: 8.499709259 | H132: 18.11854145 | I132: 27.26750861 | J132: 0.03256267959 | K132: 0.06941275775 | L132: 0.1044627668 | M132: 0.39862 | N132: 6.6202 | O132: 261.0261 | P132: 0.2789 | Q132: 0.3854 | R132: 0.3553 | S132: 0.3595 | T132: 0.2526 | U132: 0.0389 | V132: 264.0916 | W132: 0.2858 | X132: 0.3924 | Y132: 0.3594 | Z132: 0.3627 | AA132: 0.2531 | AB132: 0.0388 | AC132: -3.349364688 | AD132: 0 | AE132: 0 | AF132: 0 | AG132: 0 | AH132: 0 | AI132: 7.9724e-05 | AJ132: 0.2482
A133: 2014-10-02T08:44:59.997 | B133: 08:45:00 | C133: 41914.36458 | D133: 0.05322266 | E133: 0.1015625 | F133: 0.15039062 | G133: 9.856048148 | H133: 18.65671642 | I133: 27.6262907 | J133: 0.03328668677 | K133: 0.06300905456 | L133: 0.09330186615 | M133: 0.43049 | N133: 6.4971 | O133: 296.0958 | P133: 0.3214 | Q133: 0.4416 | R133: 0.4046 | S133: 0.4071 | T133: 0.2827 | U133: 0.0477 | V133: 299.9264 | W133: 0.3289 | X133: 0.4486 | Y133: 0.4101 | Z133: 0.4103 | AA133: 0.2832 | AB133: 0.0477 | AC133: -4.136836704 | AD133: 0 | AE133: 0 | AF133: 0 | AG133: 0 | AH133: 0 | AI133: 0 | AJ133: 0.3182
A134: 2014-10-02T08:59:59.997 | B134: 09:00:00 | C134: 41914.375 | D134: 0.08984375 | E134: 0.17675781 | F134: 0.22753907 | G134: 16.63773148 | H134: 32.46986177 | I134: 41.79822181 | J134: 0.05100999608 | K134: 0.09955008129 | L134: 0.1281501107 | M134: 0.46031 | N134: 6.5165 | O134: 326.1661 | P134: 0.3577 | Q134: 0.488 | R134: 0.4471 | S134: 0.445 | T134: 0.3075 | U134: 0.0557 | V134: 330.7108 | W134: 0.3659 | X134: 0.4964 | Y134: 0.4512 | Z134: 0.4488 | AA134: 0.3075 | AB134: 0.0557 | AC134: -4.859400608 | AD134: 0 | AE134: 0 | AF134: 0 | AG134: 0 | AH134: 0 | AI134: 0 | AJ134: 0.3963
A135: 2014-10-02T09:14:59.997 | B135: 09:15:00 | C135: 41914.38542 | D135: 0.10107422 | E135: 0.19335938 | F135: 0.23242187 | G135: 18.71744815 | H135: 35.51951871 | I135: 42.69517704 | J135: 0.05193484548 | K135: 0.09855513964 | L135: 0.1184652632 | M135: 0.48795 | N135: 6.3578 | O135: 360.4025 | P135: 0.4001 | Q135: 0.5414 | R135: 0.4937 | S135: 0.4893 | T135: 0.3357 | U135: 0.0643 | V135: 364.8882 | W135: 0.4097 | X135: 0.5512 | Y135: 0.5005 | Z135: 0.4938 | AA135: 0.3357 | AB135: 0.0643 | AC135: -4.75497516 | AD135: 0 | AE135: 0 | AF135: 0 | AG135: 0 | AH135: 0 | AI135: 0 | AJ135: 0.4823
A136: 2014-10-02T09:29:59.997 | B136: 09:30:00 | C136: 41914.39583 | D136: 0.1171875 | E136: 0.21679688 | F136: 0.2578125 | G136: 21.70138889 | H136: 39.82491481 | I136: 47.35935706 | J136: 0.05545569626 | K136: 0.1017685269 | L136: 0.1210220292 | M136: 0.51329 | N136: 6.0889 | O136: 391.3284 | P136: 0.4377 | Q136: 0.5892 | R136: 0.5362 | S136: 0.5292 | T136: 0.3605 | U136: 0.0725 | V136: 395.7212 | W136: 0.448 | X136: 0.599 | Y136: 0.5416 | Z136: 0.5331 | AA136: 0.3605 | AB136: 0.0725 | AC136: -4.620790567 | AD136: 0 | AE136: 0 | AF136: 0 | AG136: 0 | AH136: 0 | AI136: 0 | AJ136: 0.5766
A137: 2014-10-02T09:44:59.997 | B137: 09:45:00 | C137: 41914.40625 | D137: 0.12402344 | E137: 0.24414062 | F137: 0.27832031 | G137: 22.9673037 | H137: 44.84787509 | I137: 51.12657819 | J137: 0.05461520227 | K137: 0.1066462046 | L137: 0.1215766746 | M137: 0.53623 | N137: 6.3934 | O137: 420.5295 | P137: 0.4733 | Q137: 0.6342 | R137: 0.5759 | S137: 0.5671 | T137: 0.3844 | U137: 0.0807 | V137: 425.6273 | W137: 0.485 | X137: 0.6454 | Y137: 0.5841 | Z137: 0.5723 | AA137: 0.3854 | AB137: 0.0809 | AC137: -5.325514622 | AD137: 0 | AE137: 0 | AF137: 0 | AG137: 0 | AH137: 0 | AI137: 0 | AJ137: 0.6781
A138: 2014-10-02T09:59:59.997 | B138: 10:00:00 | C138: 41914.41667 | D138: 0.140625 | E138: 0.27734375 | F138: 0.22949219 | G138: 26.04166667 | H138: 50.94718714 | I138: 42.1570039 | J138: 0.05747134047 | K138: 0.1124353205 | L138: 0.09303626974 | M138: 0.55666 | N138: 6.4032 | O138: 453.1244 | P138: 0.5103 | Q138: 0.6834 | R138: 0.6211 | S138: 0.6089 | T138: 0.4121 | U138: 0.0903 | V138: 459.3701 | W138: 0.5226 | X138: 0.6946 | Y138: 0.628 | Z138: 0.6141 | AA138: 0.4131 | AB138: 0.0906 | AC138: -6.483530352 | AD138: 0 | AE138: 0 | AF138: 0 | AG138: 0 | AH138: 0 | AI138: 0 | AJ138: 0.7875
A139: 2014-10-02T10:14:59.997 | B139: 10:15:00 | C139: 41914.42708 | D139: 0.15136719 | E139: 0.30078125 | F139: 0.40722656 | G139: 28.03096111 | H139: 55.25258324 | I139: 74.80625672 | J139: 0.06262876072 | K139: 0.1234492389 | L139: 0.1671374426 | M139: 0.57451 | N139: 6.1958 | O139: 447.5733 | P139: 0.5151 | Q139: 0.6805 | R139: 0.6156 | S139: 0.602 | T139: 0.4048 | U139: 0.0912 | V139: 451.4282 | W139: 0.5247 | X139: 0.6876 | Y139: 0.6184 | Z139: 0.6012 | AA139: 0.404 | AB139: 0.091 | AC139: -3.978366848 | AD139: 0 | AE139: 0 | AF139: 0 | AG139: 0.000689412 | AH139: 0.000804314 | AI139: 0.000114902 | AJ139: 0.902
A140: 2014-10-02T10:29:59.997 | B140: 10:30:00 | C140: 41914.4375 | D140: 0.15673828 | E140: 0.30371094 | F140: 0.33789063 | G140: 29.02560741 | H140: 55.79075821 | I140: 62.06946131 | J140: 0.05891685662 | K140: 0.1132453856 | L140: 0.1259900439 | M140: 0.58968 | N140: 6.0209 | O140: 492.6537 | P140: 0.563 | Q140: 0.7466 | R140: 0.6786 | S140: 0.6603 | T140: 0.4432 | U140: 0.1029 | V140: 503.3871 | W140: 0.578 | X140: 0.7635 | Y140: 0.6896 | Z140: 0.67 | AA140: 0.4475 | AB140: 0.1037 | AC140: -11.01681454 | AD140: 0 | AE140: 0 | AF140: 0 | AG140: 0 | AH140: 0 | AI140: 0 | AJ140: 1.0239
A141: 2014-10-02T10:44:59.997 | B141: 10:45:00 | C141: 41914.44792 | D141: 0.17724609 | E141: 0.33203125 | F141: 0.35058594 | G141: 32.82335 | H141: 60.99311137 | I141: 64.4015504 | J141: 0.09271705851 | K141: 0.1722889917 | L141: 0.1819169072 | M141: 0.60212 | N141: 5.9432 | O141: 354.0163 | P141: 0.4501 | Q141: 0.5625 | R141: 0.4868 | S141: 0.4591 | T141: 0.2999 | U141: 0.0705 | V141: 529.1698 | W141: 0.6061 | X141: 0.8 | Y141: 0.7239 | Z141: 0.7034 | AA141: 0.4694 | AB141: 0.1099 | AC141: -178.8477036 | AD141: 0 | AE141: 0 | AF141: 0 | AG141: 0 | AH141: 0 | AI141: 0 | AJ141: 1.1408
A142: 2014-10-02T10:59:59.997 | B142: 11:00:00 | C142: 41914.45833 | D142: 0.17675781 | E142: 0.33496093 | F142: 0.37304687 | G142: 32.73292778 | H142: 61.5312845 | I142: 68.52755362 | J142: 0.4026012105 | K142: 0.756808856 | L142: 0.8428600162 | M142: 0.61177 | N142: 6.0857 | O142: 81.3036 | P142: 0.2105 | Q142: 0.1717 | R142: 0.0964 | S142: 0.0811 | T142: 0.0439 | U142: 0.0094 | V142: 532.9147 | W142: 0.6177 | X142: 0.8099 | Y142: 0.7293 | Z142: 0.7073 | AA142: 0.469 | AB142: 0.1146 | AC142: -458.8480555 | AD142: 0 | AE142: 0 | AF142: 0 | AG142: 0 | AH142: 0 | AI142: 0 | AJ142: 1.1822
A143: 2014-10-02T11:14:59.997 | B143: 11:15:00 | C143: 41914.46875 | D143: 0.18798828 | E143: 0.35644532 | F143: 0.36816406 | G143: 34.81264444 | H143: 65.47790034 | I143: 67.63059656 | J143: 0.1953749131 | K143: 0.3674739249 | L143: 0.3795552489 | M143: 0.61859 | N143: 6.0954 | O143: 178.1838 | P143: 0.296 | Q143: 0.3038 | R143: 0.2265 | S143: 0.2155 | T143: 0.1394 | U143: 0.0326 | V143: 566.2584 | W143: 0.6506 | X143: 0.8562 | Y143: 0.7732 | Z143: 0.7497 | AA143: 0.4986 | AB143: 0.1232 | AC143: -392.399721 | AD143: 0 | AE143: 0 | AF143: 0 | AG143: 0 | AH143: 0 | AI143: 0 | AJ143: 1.207
A144: 2014-10-02T11:29:59.997 | B144: 11:30:00 | C144: 41914.47917 | D144: 0.19921875 | E144: 0.39453125 | F144: 0.39453125 | G144: 36.89236111 | H144: 72.47416762 | I144: 72.47416762 | J144: 0.06339813044 | K144: 0.1245441222 | L144: 0.1245441222 | M144: 0.62255 | N144: 5.9497 | O144: 581.9156 | P144: 0.6527 | Q144: 0.8731 | R144: 0.7992 | S144: 0.7761 | T144: 0.5206 | U144: 0.1267 | V144: 599.6854 | W144: 0.6746 | X144: 0.8984 | Y144: 0.8184 | Z144: 0.7941 | AA144: 0.5306 | AB144: 0.1292 | AC144: -17.88349581 | AD144: 0 | AE144: 0 | AF144: 0 | AG144: 0 | AH144: 0 | AI144: 0 | AJ144: 1.3112
A145: 2014-10-02T11:44:59.997 | B145: 11:45:00 | C145: 41914.48958 | D145: 0.18408203 | E145: 0.375 | F145: 0.3828125 | G145: 34.08926481 | H145: 68.88633754 | I145: 70.32146958 | J145: 0.06542301684 | K145: 0.1322044358 | L145: 0.1349586949 | M145: 0.62364 | N145: 6.1278 | O145: 521.0592 | P145: 0.6013 | Q145: 0.793 | R145: 0.7184 | S145: 0.697 | T145: 0.4652 | U145: 0.1153 | V145: 532.897 | W145: 0.615 | X145: 0.807 | Y145: 0.7293 | Z145: 0.7073 | AA145: 0.4704 | AB145: 0.1165 | AC145: -11.85838987 | AD145: 0 | AE145: 0 | AF145: 0 | AG145: 0 | AH145: 0 | AI145: 0 | AJ145: 1.4466
A146: 2014-10-02T11:59:59.997 | B146: 12:00:00 | C146: 41914.5 | D146: 0.17578126 | E146: 0.35839843 | F146: 0.3515625 | G146: 32.55208519 | H146: 65.8366806 | I146: 64.58094145 | J146: 0.3194475157 | K146: 0.6460834671 | L146: 0.6337603625 | M146: 0.62185 | N146: 6.2574 | O146: 101.9012 | P146: 0.2502 | Q146: 0.235 | R146: 0.158 | S146: 0.139 | T146: 0.0778 | U146: 0.0171 | V146: 130.2851 | W146: 0.2851 | X146: 0.2813 | Y146: 0.1991 | Z146: 0.1782 | AA146: 0.1026 | AB146: 0.0232 | AC146: -28.30225905 | AD146: 0 | AE146: 0 | AF146: 0 | AG146: 0 | AH146: 0 | AI146: 0 | AJ146: 1.5355
A147: 2014-10-02T12:14:59.997 | B147: 12:15:00 | C147: 41914.51042 | D147: 0.14794921 | E147: 0.29101563 | F147: 0.29980469 | G147: 27.39800185 | H147: 53.45866912 | I147: 55.07319219 | J147: 0.04895724515 | K147: 0.09552481905 | L147: 0.09840979594 | M147: 0.61718 | N147: 6.0306 | O147: 559.6312 | P147: 0.6424 | Q147: 0.8478 | R147: 0.7677 | S147: 0.7452 | T147: 0.4961 | U147: 0.1246 | V147: 565.0271 | W147: 0.6533 | X147: 0.8562 | Y147: 0.7732 | Z147: 0.7484 | AA147: 0.4957 | AB147: 0.1245 | AC147: -5.35527086 | AD147: 0 | AE147: 0 | AF147: 0 | AG147: 0 | AH147: 0.000246872 | AI147: 0.000123436 | AJ147: 1.6747
A148: 2014-10-02T12:29:59.997 | B148: 12:30:00 | C148: 41914.52083 | D148: 0.20703125 | E148: 0.40039063 | F148: 0.38867187 | G148: 38.33912037 | H148: 73.55051757 | I148: 71.39781768 | J148: 0.06835768824 | K148: 0.1311387247 | L148: 0.1273005149 | M148: 0.60966 | N148: 6.0825 | O148: 560.8604 | P148: 0.6438 | Q148: 0.8492 | R148: 0.7691 | S148: 0.7471 | T148: 0.4977 | U148: 0.1246 | V148: 566.2687 | W148: 0.654 | X148: 0.8576 | Y148: 0.7745 | Z148: 0.7497 | AA148: 0.4972 | AB148: 0.1245 | AC148: -5.34245058 | AD148: 0 | AE148: 0 | AF148: 0 | AG148: 0 | AH148: 0.000548694 | AI148: 0.000121932 | AJ148: 1.8145
A149: 2014-10-02T12:44:59.997 | B149: 12:45:00 | C149: 41914.53125 | D149: 0.20019532 | E149: 0.38867187 | F149: 0.3828125 | G149: 37.07320741 | H149: 71.39781768 | I149: 70.32146958 | J149: 0.09494929196 | K149: 0.1828590702 | L149: 0.1801024031 | M149: 0.59932 | N149: 6.1213 | O149: 390.4527 | P149: 0.4925 | Q149: 0.6226 | R149: 0.5495 | S149: 0.5298 | T149: 0.3488 | U149: 0.0848 | V149: 390.7132 | W149: 0.4891 | X149: 0.6173 | Y149: 0.5444 | Z149: 0.5247 | AA149: 0.3453 | AB149: 0.0839 | AC149: -0.256089436 | AD149: 0.003356192 | AE149: 0.005214084 | AF149: 0.00509422 | AG149: 0.00509422 | AH149: 0.003476056 | AI149: 0.000839048 | AJ149: 1.9366
A150: 2014-10-02T12:59:59.997 | B150: 13:00:00 | C150: 41914.54167 | D150: 0.13574218 | E150: 0.24316406 | F150: 0.24023438 | G150: 25.13744074 | H150: 44.66848404 | I150: 44.13031091 | J150: 0.07190127511 | K150: 0.1277664259 | L150: 0.1262270753 | M150: 0.5862 | N150: 6.2574 | O150: 349.6105 | P150: 0.4432 | Q150: 0.5646 | R150: 0.48 | S150: 0.4723 | T150: 0.3145 | U150: 0.0735 | V150: 352.668 | W150: 0.4548 | X150: 0.5639 | Y150: 0.4909 | Z150: 0.472 | AA150: 0.3142 | AB150: 0.0752 | AC150: -2.99055792 | AD150: 0 | AE150: 0.00082068 | AF150: 0 | AG150: 0.00035172 | AH150: 0.00023448 | AI150: 0 | AJ150: 2.029
A151: 2014-10-02T13:14:59.997 | B151: 13:15:00 | C151: 41914.55208 | D151: 0.16992188 | E151: 0.31347657 | F151: 0.30371094 | G151: 31.46701481 | H151: 57.58467417 | I151: 55.79075821 | J151: 0.1067061163 | K151: 0.1952723186 | L151: 0.1891890658 | M151: 0.57036 | N151: 5.982 | O151: 294.8942 | P151: 0.3926 | Q151: 0.4809 | R151: 0.4142 | S151: 0.3987 | T151: 0.2626 | U151: 0.0604 | V151: 301.5725 | W151: 0.3994 | X151: 0.4894 | Y151: 0.4224 | Z151: 0.4051 | AA151: 0.266 | AB151: 0.0609 | AC151: -6.497769264 | AD151: 0 | AE151: 0 | AF151: 0 | AG151: 0 | AH151: 0 | AI151: 0 | AJ151: 2.1409
A152: 2014-10-02T13:29:59.997 | B152: 13:30:00 | C152: 41914.5625 | D152: 0.17333984 | E152: 0.30371093 | F152: 0.296875 | G152: 32.09997037 | H152: 55.79075637 | I152: 54.53501722 | J152: 0.07491540589 | K152: 0.1302053276 | L152: 0.1272746642 | M152: 0.55187 | N152: 5.7909 | O152: 428.4829 | P152: 0.5164 | Q152: 0.6675 | R152: 0.5975 | S152: 0.5793 | T152: 0.3845 | U152: 0.0898 | V152: 427.9274 | W152: 0.5123 | X152: 0.6609 | Y152: 0.591 | Z152: 0.5729 | AA152: 0.3801 | AB152: 0.0888 | AC152: 0.537411006 | AD152: 0.00386309 | AE152: 0.006346505 | AF152: 0.006236131 | AG152: 0.006180944 | AH152: 0.004249399 | AI152: 0.000938179 | AJ152: 2.2535
A153: 2014-10-02T13:44:59.997 | B153: 13:45:00 | C153: 41914.57292 | D153: 0.17285156 | E153: 0.32421875 | F153: 0.32128906 | G153: 32.00954815 | H153: 59.55797933 | I153: 59.01980436 | J153: 0.0603839351 | K153: 0.1123522626 | L153: 0.1113370304 | M153: 0.5308 | N153: 5.9594 | O153: 530.1004 | P153: 0.5911 | Q153: 0.7916 | R153: 0.7239 | S153: 0.7092 | T153: 0.4802 | U153: 0.1121 | V153: 535.4978 | W153: 0.5993 | X153: 0.7986 | Y153: 0.728 | Z153: 0.7105 | AA153: 0.48 | AB153: 0.1123 | AC153: -5.19127708 | AD153: 0 | AE153: 0 | AF153: 0 | AG153: 0 | AH153: 0.00021232 | AI153: 0 | AJ153: 2.3768
A154: 2014-10-02T13:59:59.997 | B154: 14:00:00 | C154: 41914.58333 | D154: 0.18701172 | E154: 0.33007813 | F154: 0.31347656 | G154: 34.6318 | H154: 60.63432928 | I154: 57.58467233 | J154: 0.06993393071 | K154: 0.1224422924 | L154: 0.1162839496 | M154: 0.50725 | N154: 5.9011 | O154: 495.2074 | P154: 0.5609 | Q154: 0.7466 | R154: 0.6786 | S154: 0.6664 | T154: 0.4487 | U154: 0.1039 | V154: 500.0493 | W154: 0.5664 | X154: 0.7508 | Y154: 0.6814 | Z154: 0.6661 | AA154: 0.448 | AB154: 0.1037 | AC154: -4.62703305 | AD154: 0 | AE154: 0 | AF154: 0 | AG154: 0.00030435 | AH154: 0.00071015 | AI154: 0.0002029 | AJ154: 2.5013
A155: 2014-10-02T14:14:59.997 | B155: 14:15:00 | C155: 41914.59375 | D155: 0.18994141 | E155: 0.34667969 | F155: 0.328125 | G155: 35.17433519 | H155: 63.68398439 | I155: 60.27554535 | J155: 0.07196796395 | K155: 0.130299739 | L155: 0.1233259492 | M155: 0.48132 | N155: 5.8946 | O155: 488.7499 | P155: 0.5452 | Q155: 0.7311 | R155: 0.6677 | S155: 0.6571 | T155: 0.4446 | U155: 0.1022 | V155: 494.1347 | W155: 0.5534 | X155: 0.7396 | Y155: 0.6732 | Z155: 0.6603 | AA155: 0.4451 | AB155: 0.1022 | AC155: -5.109500592 | AD155: 0 | AE155: 0 | AF155: 0 | AG155: 0 | AH155: 0 | AI155: 0 | AJ155: 2.6247
A156: 2014-10-02T14:29:59.997 | B156: 14:30:00 | C156: 41914.60417 | D156: 0.19384766 | E156: 0.33789062 | F156: 0.3359375 | G156: 35.89771481 | H156: 62.06945947 | I156: 61.71067738 | J156: 0.0738963319 | K156: 0.1277715142 | L156: 0.1270329524 | M156: 0.45311 | N156: 5.6225 | O156: 485.7848 | P156: 0.5503 | Q156: 0.7438 | R156: 0.6759 | S156: 0.6636 | T156: 0.4477 | U156: 0.1022 | V156: 488.3281 | W156: 0.5486 | X156: 0.741 | Y156: 0.6732 | Z156: 0.6603 | AA156: 0.4456 | AB156: 0.1017 | AC156: -2.394278551 | AD156: 0.001585885 | AE156: 0.002537416 | AF156: 0.002446794 | AG156: 0.002945215 | AH156: 0.001993684 | AI156: 0.000407799 | AJ156: 2.7463
A157: 2014-10-02T14:44:59.997 | B157: 14:45:00 | C157: 41914.61458 | D157: 0.1484375 | E157: 0.26660156 | F157: 0.26171875 | G157: 27.48842593 | H157: 48.97388014 | I157: 48.07692308 | J157: 0.114642442 | K157: 0.2042490621 | L157: 0.2005082387 | M157: 0.42275 | N157: 6.0306 | O157: 239.7753 | P157: 0.3152 | Q157: 0.3924 | R157: 0.3361 | S157: 0.3273 | T157: 0.2235 | U157: 0.051 | V157: 247.1171 | W157: 0.3255 | X157: 0.4036 | Y157: 0.3471 | Z157: 0.3363 | AA157: 0.2282 | AB157: 0.0522 | AC157: -6.84981825 | AD157: 0 | AE157: 0 | AF157: 0 | AG157: 0 | AH157: 0 | AI157: 0 | AJ157: 2.8229
A158: 2014-10-02T14:59:59.997 | B158: 15:00:00 | C158: 41914.625 | D158: 0.10693359 | E158: 0.17773438 | F158: 0.17480469 | G158: 19.80251667 | H158: 32.64925465 | I158: 32.11107968 | J158: 0.06209698274 | K158: 0.1023819465 | L158: 0.1006943306 | M158: 0.39036 | N158: 6.1343 | O158: 318.8966 | P158: 0.3772 | Q158: 0.4971 | R158: 0.4451 | S158: 0.4381 | T158: 0.2979 | U158: 0.0617 | V158: 321.4452 | W158: 0.3768 | X158: 0.4964 | Y158: 0.4444 | Z158: 0.4373 | AA158: 0.2975 | AB158: 0.0616 | AC158: -2.353324296 | AD158: 0.000234216 | AE158: 0.000546504 | AF158: 0.000507468 | AG158: 0.000741684 | AH158: 0.000351324 | AI158: 7.8072e-05 | AJ158: 2.896
A159: 2014-10-02T15:14:59.997 | B159: 15:15:00 | C159: 41914.63542 | D159: 0.125 | E159: 0.23046875 | F159: 0.21582031 | G159: 23.14814815 | H159: 42.33639495 | I159: 39.64552193 | J159: 0.1001344381 | K159: 0.1831391043 | L159: 0.171498905 | M159: 0.3561 | N159: 5.9399 | O159: 231.1707 | P159: 0.2971 | Q159: 0.3787 | R159: 0.33 | S159: 0.3251 | T159: 0.2164 | U159: 0.0419 | V159: 231.9311 | W159: 0.296 | X159: 0.3769 | Y159: 0.3279 | Z159: 0.3228 | AA159: 0.2149 | AB159: 0.0416 | AC159: -0.69361158 | AD159: 0.00096147 | AE159: 0.00149562 | AF159: 0.00192294 | AG159: 0.00202977 | AH159: 0.00135318 | AI159: 0.00024927 | AJ159: 2.982
A160: 2014-10-02T15:29:59.997 | B160: 15:30:00 | C160: 41914.64583 | D160: 0.11181641 | E160: 0.19335937 | F160: 0.1796875 | G160: 20.70674259 | H160: 35.51951688 | I160: 33.00803674 | J160: 0.05602632811 | K160: 0.09610531922 | L160: 0.08930999593 | M160: 0.32078 | N160: 5.9302 | O160: 369.5895 | P160: 0.3857 | Q160: 0.54 | R160: 0.5005 | S160: 0.5054 | T160: 0.3529 | U160: 0.0663 | V160: 373.3526 | W160: 0.3898 | X160: 0.5428 | Y160: 0.5019 | Z160: 0.5067 | AA160: 0.3529 | AB160: 0.0665 | AC160: -3.389810572 | AD160: 0 | AE160: 0 | AF160: 0 | AG160: 0 | AH160: 0 | AI160: 0 | AJ160: 3.0689
A161: 2014-10-02T15:44:59.997 | B161: 15:45:00 | C161: 41914.65625 | D161: 0.125 | E161: 0.23828125 | F161: 0.18066407 | G161: 23.14814815 | H161: 43.77152698 | I161: 33.18742962 | J161: 0.07008244701 | K161: 0.1325209991 | L161: 0.1004769912 | M161: 0.28332 | N161: 5.8233 | O161: 330.2988 | P161: 0.3433 | Q161: 0.4823 | R161: 0.4457 | S161: 0.4533 | T161: 0.3196 | U161: 0.0569 | V161: 334.0704 | W161: 0.3481 | X161: 0.4852 | Y161: 0.4471 | Z161: 0.4533 | AA161: 0.3195 | AB161: 0.0569 | AC161: -3.331078236 | AD161: 0 | AE161: 0 | AF161: 0 | AG161: 0 | AH161: 0.000113328 | AI161: 0 | AJ161: 3.1538
A162: 2014-10-02T15:59:59.997 | B162: 16:00:00 | C162: 41914.66667 | D162: 0.10595703 | E162: 0.19042969 | F162: 0.14648437 | G162: 19.62167222 | H162: 34.98134374 | I162: 26.90872468 | J162: 0.07760466531 | K162: 0.1383529111 | L162: 0.1064253112 | M162: 0.24448 | N162: 5.914 | O162: 252.8414 | P162: 0.2598 | Q162: 0.3685 | R162: 0.343 | S162: 0.3543 | T162: 0.2516 | U162: 0.0373 | V162: 255.1216 | W162: 0.2632 | X162: 0.3699 | Y162: 0.3444 | Z162: 0.3543 | AA162: 0.2516 | AB162: 0.0373 | AC162: -1.967501696 | AD162: 0 | AE162: 0 | AF162: 0 | AG162: 0 | AH162: 0 | AI162: 0 | AJ162: 3.2254
A163: 2014-10-02T16:14:59.997 | B163: 16:15:00 | C163: 41914.67708 | D163: 0.07226562 | E163: 0.13085938 | F163: 0.1015625 | G163: 13.38252222 | H163: 24.03846246 | I163: 18.65671642 | J163: 0.1240826266 | K163: 0.2228844094 | L163: 0.1729849081 | M163: 0.20445 | N163: 6.2218 | O163: 107.8517 | P163: 0.1585 | Q163: 0.19 | R163: 0.1539 | S163: 0.1538 | T163: 0.1042 | U163: 0.0153 | V163: 108.7539 | W163: 0.1619 | X163: 0.1928 | Y163: 0.1567 | Z163: 0.1564 | AA163: 0.1041 | AB163: 0.0156 | AC163: -0.75437961 | AD163: 0 | AE163: 0 | AF163: 0 | AG163: 0 | AH163: 8.178e-05 | AI163: 0 | AJ163: 3.2725
A164: 2014-10-02T16:29:59.997 | B164: 16:30:00 | C164: 41914.6875 | D164: 0.04003906 | E164: 0.08007812 | F164: 0.04492187 | G164: 7.414640741 | H164: 14.71010241 | I164: 8.252008266 | J164: 0.04079979586 | K164: 0.08094379706 | L164: 0.04540749369 | M164: 0.16344 | N164: 6.3384 | O164: 181.7323 | P164: 0.1749 | Q164: 0.256 | R164: 0.243 | S164: 0.2586 | T164: 0.19 | U164: 0.0223 | V164: 183.4847 | W164: 0.1783 | X164: 0.2588 | Y164: 0.243 | Z164: 0.2592 | AA164: 0.19 | AB164: 0.0223 | AC164: -1.400827896 | AD164: 0 | AE164: 0 | AF164: 0 | AG164: 0 | AH164: 0 | AI164: 0 | AJ164: 3.3153
A165: 2014-10-02T16:44:59.997 | B165: 16:45:00 | C165: 41914.69792 | D165: 0.03759766 | E165: 0.07910156 | F165: 0.03515626 | G165: 6.96252963 | H165: 14.53071137 | I165: 6.458095982 | J165: 0.04876158108 | K165: 0.1017648036 | L165: 0.0452288159 | M165: 0.12173 | N165: 6.2963 | O165: 142.7872 | P165: 0.1359 | Q165: 0.1998 | R165: 0.1882 | S165: 0.2059 | T165: 0.1543 | U165: 0.0154 | V165: 144.6492 | W165: 0.1386 | X165: 0.2012 | Y165: 0.1895 | Z165: 0.2065 | AA165: 0.1542 | AB165: 0.0153 | AC165: -1.386723814 | AD165: 0 | AE165: 0 | AF165: 0 | AG165: 0 | AH165: 4.8692e-05 | AI165: 2.4346e-05 | AJ165: 3.3558
A166: 2014-10-02T16:59:59.997 | B166: 17:00:00 | C166: 41914.70833 | D166: 0.01904297 | E166: 0.04785156 | F166: 0.01074218 | G166: 3.526475926 | H166: 8.790183237 | I166: 1.973305167 | J166: 0.03702581825 | K166: 0.09229149264 | L166: 0.02071848497 | M166: 0.07974 | N166: 6.293 | O166: 95.2437 | P166: 0.0948 | Q166: 0.1352 | R166: 0.1238 | S166: 0.1398 | T166: 0.1069 | U166: 0.0081 | V166: 95.7457 | W166: 0.0969 | X166: 0.1366 | Y166: 0.1252 | Z166: 0.1396 | AA166: 0.1069 | AB166: 0.0081 | AC166: -0.32884776 | AD166: 0 | AE166: 0 | AF166: 0 | AG166: 9.5688e-05 | AH166: 0 | AI166: 0 | AJ166: 3.3841
A167: 2014-10-02T17:14:59.997 | B167: 17:15:00 | C167: 41914.71875 | D167: 0.0009765599998 | E167: 0.01367188 | F167: 0.005859379999 | G167: 0.1808444444 | H167: 2.511481975 | I167: 1.076349942 | J167: 0.006523146226 | K167: 0.09059036467 | L167: 0.03882446092 | M167: 0.03846 | N167: 6.4777 | O167: 27.7235 | P167: 0.0579 | Q167: 0.0621 | R167: 0.0388 | S167: 0.04 | T167: 0.0248 | U167: 0.0037 | V167: 27.918 | W167: 0.0592 | X167: 0.0635 | Y167: 0.0402 | Z167: 0.0406 | AA167: 0.0252 | AB167: 0.0039 | AC167: -0.093773172 | AD167: 0 | AE167: 0 | AF167: 0 | AG167: 0 | AH167: 0 | AI167: 0 | AJ167: 3.3979
A168: 2014-10-02T17:29:59.997 | B168: 17:30:00 | C168: 41914.72917 | D168: 0 | E168: 0.002929689999 | F168: 0.001953120001 | G168: 0 | H168: 0.5381749712 | I168: 0.3587820898 | J168: 0 | K168: 0.04301855041 | L168: 0.02867893574 | M168: 0.0018 | N168: 6.6656 | O168: 12.5103 | P168: 0.0332 | Q168: 0.0339 | R168: 0.0183 | S168: 0.0194 | T168: 0.0104 | U168: 0.0015 | V168: 12.4792 | W168: 0.0339 | X168: 0.0353 | Y168: 0.0197 | Z168: 0.0194 | AA168: 0.0104 | AB168: 0.0017 | AC168: 0.00145422 | AD168: 0 | AE168: 0 | AF168: 0 | AG168: 0 | AH168: 0 | AI168: 0 | AJ168: 3.4023
A169: 2014-10-02T17:44:59.997 | B169: 17:45:00 | C169: 41914.73958 | D169: 0 | E169: 0 | F169: 0 | G169: 0 | H169: 0 | I169: 0 | J169: 0 | K169: 0 | L169: 0 | M169: -0.05476 | N169: 6.7044 | O169: 0 | P169: 0 | Q169: 0 | R169: 0 | S169: 0 | T169: 0 | U169: 0 | V169: 0 | W169: 0 | X169: 0 | Y169: 0 | Z169: 0 | AA169: 0 | AB169: 0 | AC169: 0 | AD169: 0 | AE169: 0 | AF169: 0 | AG169: 0 | AH169: 0 | AI169: 0 | AJ169: 3.404
A170: 2014-10-02T17:59:59.997 | B170: 18:00:00 | C170: 41914.75 | D170: 0 | E170: 0 | F170: 0 | G170: 0 | H170: 0 | I170: 0 | J170: 0 | K170: 0 | L170: 0 | M170: -0.09877 | N170: 6.7401 | O170: 0 | P170: 0 | Q170: 0 | R170: 0 | S170: 0 | T170: 0 | U170: 0 | V170: 0 | W170: 0 | X170: 0 | Y170: 0 | Z170: 0 | AA170: 0 | AB170: 0 | AC170: 0 | AD170: 0 | AE170: 0 | AF170: 0 | AG170: 0 | AH170: 0 | AI170: 0 | AJ170: 3.404
A171: 2014-10-02T18:14:59.997 | B171: 18:15:00 | C171: 41914.76042 | D171: 0 | E171: 0 | F171: 0 | G171: 0 | H171: 0 | I171: 0 | J171: 0 | K171: 0 | L171: 0 | M171: -0.14257 | N171: 6.7789 | O171: 0 | P171: 0 | Q171: 0 | R171: 0 | S171: 0 | T171: 0 | U171: 0 | V171: 0 | W171: 0 | X171: 0 | Y171: 0 | Z171: 0 | AA171: 0 | AB171: 0 | AC171: 0 | AD171: 0 | AE171: 0 | AF171: 0 | AG171: 0 | AH171: 0 | AI171: 0 | AJ171: 3.404
A172: 2014-10-02T18:29:59.997 | B172: 18:30:00 | C172: 41914.77083 | D172: 0 | E172: 0 | F172: 0 | G172: 0 | H172: 0 | I172: 0 | J172: 0 | K172: 0 | L172: 0 | M172: -0.18597 | N172: 6.7984 | O172: 0 | P172: 0 | Q172: 0 | R172: 0 | S172: 0 | T172: 0 | U172: 0 | V172: 0 | W172: 0 | X172: 0 | Y172: 0 | Z172: 0 | AA172: 0 | AB172: 0 | AC172: 0 | AD172: 0 | AE172: 0 | AF172: 0 | AG172: 0 | AH172: 0 | AI172: 0 | AJ172: 3.404
A173: 2014-10-02T18:44:59.997 | B173: 18:45:00 | C173: 41914.78125 | D173: 0 | E173: 0 | F173: 0 | G173: 0 | H173: 0 | I173: 0 | J173: 0 | K173: 0 | L173: 0 | M173: -0.2288 | N173: 6.834 | O173: 0 | P173: 0 | Q173: 0 | R173: 0 | S173: 0 | T173: 0 | U173: 0 | V173: 0 | W173: 0 | X173: 0 | Y173: 0 | Z173: 0 | AA173: 0 | AB173: 0 | AC173: 0 | AD173: 0 | AE173: 0 | AF173: 0 | AG173: 0 | AH173: 0 | AI173: 0 | AJ173: 3.404
A174: 2014-10-02T18:59:59.997 | B174: 19:00:00 | C174: 41914.79167 | D174: 0 | E174: 0 | F174: 0 | G174: 0 | H174: 0 | I174: 0 | J174: 0 | K174: 0 | L174: 0 | M174: -0.27085 | N174: 6.8794 | O174: 0 | P174: 0 | Q174: 0 | R174: 0 | S174: 0 | T174: 0 | U174: 0 | V174: 0 | W174: 0 | X174: 0 | Y174: 0 | Z174: 0 | AA174: 0 | AB174: 0 | AC174: 0 | AD174: 0 | AE174: 0 | AF174: 0 | AG174: 0 | AH174: 0 | AI174: 0 | AJ174: 3.404
A175: 2014-10-02T19:14:59.997 | B175: 19:15:00 | C175: 41914.80208 | D175: 0 | E175: 0 | F175: 0 | G175: 0 | H175: 0 | I175: 0 | J175: 0 | K175: 0 | L175: 0 | M175: -0.31196 | N175: 6.8923 | O175: 0 | P175: 0 | Q175: 0 | R175: 0 | S175: 0 | T175: 0 | U175: 0 | V175: 0 | W175: 0 | X175: 0 | Y175: 0 | Z175: 0 | AA175: 0 | AB175: 0 | AC175: 0 | AD175: 0 | AE175: 0 | AF175: 0 | AG175: 0 | AH175: 0 | AI175: 0 | AJ175: 3.404
A176: 2014-10-02T19:29:59.997 | B176: 19:30:00 | C176: 41914.8125 | D176: 0 | E176: 0 | F176: 0 | G176: 0 | H176: 0 | I176: 0 | J176: 0 | K176: 0 | L176: 0 | M176: -0.35195 | N176: 6.9117 | O176: 0 | P176: 0 | Q176: 0 | R176: 0 | S176: 0 | T176: 0 | U176: 0 | V176: 0 | W176: 0 | X176: 0 | Y176: 0 | Z176: 0 | AA176: 0 | AB176: 0 | AC176: 0 | AD176: 0 | AE176: 0 | AF176: 0 | AG176: 0 | AH176: 0 | AI176: 0 | AJ176: 3.404
A177: 2014-10-02T19:44:59.997 | B177: 19:45:00 | C177: 41914.82292 | D177: 0 | E177: 0 | F177: 0 | G177: 0 | H177: 0 | I177: 0 | J177: 0 | K177: 0 | L177: 0 | M177: -0.39065 | N177: 6.9312 | O177: 0 | P177: 0 | Q177: 0 | R177: 0 | S177: 0 | T177: 0 | U177: 0 | V177: 0 | W177: 0 | X177: 0 | Y177: 0 | Z177: 0 | AA177: 0 | AB177: 0 | AC177: 0 | AD177: 0 | AE177: 0 | AF177: 0 | AG177: 0 | AH177: 0 | AI177: 0 | AJ177: 3.404
A178: 2014-10-02T19:59:59.997 | B178: 20:00:00 | C178: 41914.83333 | D178: 0 | E178: 0 | F178: 0 | G178: 0 | H178: 0 | I178: 0 | J178: 0 | K178: 0 | L178: 0 | M178: -0.42789 | N178: 6.9474 | O178: 0 | P178: 0 | Q178: 0 | R178: 0 | S178: 0 | T178: 0 | U178: 0 | V178: 0 | W178: 0 | X178: 0 | Y178: 0 | Z178: 0 | AA178: 0 | AB178: 0 | AC178: 0 | AD178: 0 | AE178: 0 | AF178: 0 | AG178: 0 | AH178: 0 | AI178: 0 | AJ178: 3.404
A179: 2014-10-02T20:14:59.997 | B179: 20:15:00 | C179: 41914.84375 | D179: 0 | E179: 0 | F179: 0 | G179: 0 | H179: 0 | I179: 0 | J179: 0 | K179: 0 | L179: 0 | M179: -0.46351 | N179: 6.9441 | O179: 0 | P179: 0 | Q179: 0 | R179: 0 | S179: 0 | T179: 0 | U179: 0 | V179: 0 | W179: 0 | X179: 0 | Y179: 0 | Z179: 0 | AA179: 0 | AB179: 0 | AC179: 0 | AD179: 0 | AE179: 0 | AF179: 0 | AG179: 0 | AH179: 0 | AI179: 0 | AJ179: 3.404
A180: 2014-10-02T20:29:59.997 | B180: 20:30:00 | C180: 41914.85417 | D180: 0 | E180: 0 | F180: 0 | G180: 0 | H180: 0 | I180: 0 | J180: 0 | K180: 0 | L180: 0 | M180: -0.49736 | N180: 6.9506 | O180: 0 | P180: 0 | Q180: 0 | R180: 0 | S180: 0 | T180: 0 | U180: 0 | V180: 0 | W180: 0 | X180: 0 | Y180: 0 | Z180: 0 | AA180: 0 | AB180: 0 | AC180: 0 | AD180: 0 | AE180: 0 | AF180: 0 | AG180: 0 | AH180: 0 | AI180: 0 | AJ180: 3.404
A181: 2014-10-02T20:44:59.997 | B181: 20:45:00 | C181: 41914.86458 | D181: 0 | E181: 0 | F181: 0 | G181: 0 | H181: 0 | I181: 0 | J181: 0 | K181: 0 | L181: 0 | M181: -0.5293 | N181: 6.983 | O181: 0 | P181: 0 | Q181: 0 | R181: 0 | S181: 0 | T181: 0 | U181: 0 | V181: 0 | W181: 0 | X181: 0 | Y181: 0 | Z181: 0 | AA181: 0 | AB181: 0 | AC181: 0 | AD181: 0 | AE181: 0 | AF181: 0 | AG181: 0 | AH181: 0 | AI181: 0 | AJ181: 3.404
A182: 2014-10-02T20:59:59.997 | B182: 21:00:00 | C182: 41914.875 | D182: 0 | E182: 0 | F182: 0 | G182: 0 | H182: 0 | I182: 0 | J182: 0 | K182: 0 | L182: 0 | M182: -0.55918 | N182: 7.0446 | O182: 0 | P182: 0 | Q182: 0 | R182: 0 | S182: 0 | T182: 0 | U182: 0 | V182: 0 | W182: 0 | X182: 0 | Y182: 0 | Z182: 0 | AA182: 0 | AB182: 0 | AC182: 0 | AD182: 0 | AE182: 0 | AF182: 0 | AG182: 0 | AH182: 0 | AI182: 0 | AJ182: 3.404
A183: 2014-10-02T21:14:59.997 | B183: 21:15:00 | C183: 41914.88542 | D183: 0 | E183: 0 | F183: 0 | G183: 0 | H183: 0 | I183: 0 | J183: 0 | K183: 0 | L183: 0 | M183: -0.58689 | N183: 6.9668 | O183: 0 | P183: 0 | Q183: 0 | R183: 0 | S183: 0 | T183: 0 | U183: 0 | V183: 0 | W183: 0 | X183: 0 | Y183: 0 | Z183: 0 | AA183: 0 | AB183: 0 | AC183: 0 | AD183: 0 | AE183: 0 | AF183: 0 | AG183: 0 | AH183: 0 | AI183: 0 | AJ183: 3.404
A184: 2014-10-02T21:29:59.997 | B184: 21:30:00 | C184: 41914.89583 | D184: 0 | E184: 0 | F184: 0 | G184: 0 | H184: 0 | I184: 0 | J184: 0 | K184: 0 | L184: 0 | M184: -0.6123 | N184: 7.0186 | O184: 0 | P184: 0 | Q184: 0 | R184: 0 | S184: 0 | T184: 0 | U184: 0 | V184: 0 | W184: 0 | X184: 0 | Y184: 0 | Z184: 0 | AA184: 0 | AB184: 0 | AC184: 0 | AD184: 0 | AE184: 0 | AF184: 0 | AG184: 0 | AH184: 0 | AI184: 0 | AJ184: 3.404
A185: 2014-10-02T21:44:59.997 | B185: 21:45:00 | C185: 41914.90625 | D185: 0 | E185: 0 | F185: 0 | G185: 0 | H185: 0 | I185: 0 | J185: 0 | K185: 0 | L185: 0 | M185: -0.63531 | N185: 7.1547 | O185: 0 | P185: 0 | Q185: 0 | R185: 0 | S185: 0 | T185: 0 | U185: 0 | V185: 0 | W185: 0 | X185: 0 | Y185: 0 | Z185: 0 | AA185: 0 | AB185: 0 | AC185: 0 | AD185: 0 | AE185: 0 | AF185: 0 | AG185: 0 | AH185: 0 | AI185: 0 | AJ185: 3.404
A186: 2014-10-02T21:59:59.997 | B186: 22:00:00 | C186: 41914.91667 | D186: 0 | E186: 0 | F186: 0 | G186: 0 | H186: 0 | I186: 0 | J186: 0 | K186: 0 | L186: 0 | M186: -0.65581 | N186: 7.1741 | O186: 0 | P186: 0 | Q186: 0 | R186: 0 | S186: 0 | T186: 0 | U186: 0 | V186: 0 | W186: 0 | X186: 0 | Y186: 0 | Z186: 0 | AA186: 0 | AB186: 0 | AC186: 0 | AD186: 0 | AE186: 0 | AF186: 0 | AG186: 0 | AH186: 0 | AI186: 0 | AJ186: 3.404
A187: 2014-10-02T22:14:59.997 | B187: 22:15:00 | C187: 41914.92708 | D187: 0 | E187: 0 | F187: 0 | G187: 0 | H187: 0 | I187: 0 | J187: 0 | K187: 0 | L187: 0 | M187: -0.67371 | N187: 7.1288 | O187: 0 | P187: 0 | Q187: 0 | R187: 0 | S187: 0 | T187: 0 | U187: 0 | V187: 0 | W187: 0 | X187: 0 | Y187: 0 | Z187: 0 | AA187: 0 | AB187: 0 | AC187: 0 | AD187: 0 | AE187: 0 | AF187: 0 | AG187: 0 | AH187: 0 | AI187: 0 | AJ187: 3.404
A188: 2014-10-02T22:29:59.997 | B188: 22:30:00 | C188: 41914.9375 | D188: 0 | E188: 0 | F188: 0 | G188: 0 | H188: 0 | I188: 0 | J188: 0 | K188: 0 | L188: 0 | M188: -0.68895 | N188: 7.1126 | O188: 0 | P188: 0 | Q188: 0 | R188: 0 | S188: 0 | T188: 0 | U188: 0 | V188: 0 | W188: 0 | X188: 0 | Y188: 0 | Z188: 0 | AA188: 0 | AB188: 0 | AC188: 0 | AD188: 0 | AE188: 0 | AF188: 0 | AG188: 0 | AH188: 0 | AI188: 0 | AJ188: 3.404
A189: 2014-10-02T22:44:59.997 | B189: 22:45:00 | C189: 41914.94792 | D189: 0 | E189: 0 | F189: 0 | G189: 0 | H189: 0 | I189: 0 | J189: 0 | K189: 0 | L189: 0 | M189: -0.70146 | N189: 7.0543 | O189: 0 | P189: 0 | Q189: 0 | R189: 0 | S189: 0 | T189: 0 | U189: 0 | V189: 0 | W189: 0 | X189: 0 | Y189: 0 | Z189: 0 | AA189: 0 | AB189: 0 | AC189: 0 | AD189: 0 | AE189: 0 | AF189: 0 | AG189: 0 | AH189: 0 | AI189: 0 | AJ189: 3.404
A190: 2014-10-02T22:59:59.997 | B190: 23:00:00 | C190: 41914.95833 | D190: 0 | E190: 0 | F190: 0 | G190: 0 | H190: 0 | I190: 0 | J190: 0 | K190: 0 | L190: 0 | M190: -0.71118 | N190: 7.1223 | O190: 0 | P190: 0 | Q190: 0 | R190: 0 | S190: 0 | T190: 0 | U190: 0 | V190: 0 | W190: 0 | X190: 0 | Y190: 0 | Z190: 0 | AA190: 0 | AB190: 0 | AC190: 0 | AD190: 0 | AE190: 0 | AF190: 0 | AG190: 0 | AH190: 0 | AI190: 0 | AJ190: 3.404
A191: 2014-10-02T23:14:59.997 | B191: 23:15:00 | C191: 41914.96875 | D191: 0 | E191: 0 | F191: 0 | G191: 0 | H191: 0 | I191: 0 | J191: 0 | K191: 0 | L191: 0 | M191: -0.71807 | N191: 7.1223 | O191: 0 | P191: 0 | Q191: 0 | R191: 0 | S191: 0 | T191: 0 | U191: 0 | V191: 0 | W191: 0 | X191: 0 | Y191: 0 | Z191: 0 | AA191: 0 | AB191: 0 | AC191: 0 | AD191: 0 | AE191: 0 | AF191: 0 | AG191: 0 | AH191: 0 | AI191: 0 | AJ191: 3.404
A192: 2014-10-02T23:29:59.997 | B192: 23:30:00 | C192: 41914.97917 | D192: 0 | E192: 0 | F192: 0 | G192: 0 | H192: 0 | I192: 0 | J192: 0 | K192: 0 | L192: 0 | M192: -0.72211 | N192: 7.1288 | O192: 0 | P192: 0 | Q192: 0 | R192: 0 | S192: 0 | T192: 0 | U192: 0 | V192: 0 | W192: 0 | X192: 0 | Y192: 0 | Z192: 0 | AA192: 0 | AB192: 0 | AC192: 0 | AD192: 0 | AE192: 0 | AF192: 0 | AG192: 0 | AH192: 0 | AI192: 0 | AJ192: 3.404
A193: 2014-10-02T23:44:59.997 | B193: 23:45:00 | C193: 41914.98958 | D193: 0 | E193: 0 | F193: 0 | G193: 0 | H193: 0 | I193: 0 | J193: 0 | K193: 0 | L193: 0 | M193: -0.72327 | N193: 7.2324 | O193: 0 | P193: 0 | Q193: 0 | R193: 0 | S193: 0 | T193: 0 | U193: 0 | V193: 0 | W193: 0 | X193: 0 | Y193: 0 | Z193: 0 | AA193: 0 | AB193: 0 | AC193: 0 | AD193: 0 | AE193: 0 | AF193: 0 | AG193: 0 | AH193: 0 | AI193: 0 | AJ193: 3.404 | AK193: 4.811035156 | AL193: 9.171875 | AM193: 9.389648438 | AN193: 0.06543275714 | AO193: 0.1237400845 | AP193: 0.1266781241
A194: 2014-10-02T23:59:59.997 | B194: 00:00:00 | C194: 41915 | D194: 0 | E194: 0 | F194: 0 | G194: 0 | H194: 0 | I194: 0 | J194: 0 | K194: 0 | L194: 0 | M194: -0.72155 | N194: 7.2357 | O194: 0 | P194: 0 | Q194: 0 | R194: 0 | S194: 0 | T194: 0 | U194: 0 | V194: 0 | W194: 0 | X194: 0 | Y194: 0 | Z194: 0 | AA194: 0 | AB194: 0 | AC194: 0 | AD194: 0 | AE194: 0 | AF194: 0 | AG194: 0 | AH194: 0 | AI194: 0 | AJ194: 0
A195: 2014-10-03T00:14:59.997 | B195: 00:15:00 | C195: 41915.01042 | D195: 0 | E195: 0 | F195: 0 | G195: =D195*4000/ 21.6 -> 0 | H195: =E195*4000/21.775 -> 0 | I195: =F195*4000/21.775 -> 0 | J195: =IFERROR(G195/$O195,) -> 0 | K195: =IFERROR(H195/$O195,) -> 0 | L195: =IFERROR(I195/$O195,) -> 0 | M195: -0.71696 | N195: 7.1644 | O195: 0 | P195: 0 | Q195: 0 | R195: 0 | S195: 0 | T195: 0 | U195: 0 | V195: 0 | W195: 0 | X195: 0 | Y195: 0 | Z195: 0 | AA195: 0 | AB195: 0 | AC195: 0 | AD195: 0 | AE195: 0 | AF195: 0 | AG195: 0 | AH195: 0 | AI195: 0 | AJ195: 0
A196: 2014-10-03T00:29:59.997 | B196: 00:30:00 | C196: 41915.02083 | D196: 0 | E196: 0 | F196: 0 | G196: 0 | H196: 0 | I196: 0 | J196: 0 | K196: 0 | L196: 0 | M196: -0.70951 | N196: 7.1806 | O196: 0 | P196: 0 | Q196: 0 | R196: 0 | S196: 0 | T196: 0 | U196: 0 | V196: 0 | W196: 0 | X196: 0 | Y196: 0 | Z196: 0 | AA196: 0 | AB196: 0 | AC196: 0 | AD196: 0 | AE196: 0 | AF196: 0 | AG196: 0 | AH196: 0 | AI196: 0 | AJ196: 0
A197: 2014-10-03T00:44:59.997 | B197: 00:45:00 | C197: 41915.03125 | D197: 0 | E197: 0 | F197: 0 | G197: 0 | H197: 0 | I197: 0 | J197: 0 | K197: 0 | L197: 0 | M197: -0.69925 | N197: 7.1936 | O197: 0 | P197: 0 | Q197: 0 | R197: 0 | S197: 0 | T197: 0 | U197: 0 | V197: 0 | W197: 0 | X197: 0 | Y197: 0 | Z197: 0 | AA197: 0 | AB197: 0 | AC197: 0 | AD197: 0 | AE197: 0 | AF197: 0 | AG197: 0 | AH197: 0 | AI197: 0 | AJ197: 0
A198: 2014-10-03T00:59:59.997 | B198: 01:00:00 | C198: 41915.04167 | D198: 0 | E198: 0 | F198: 0 | G198: 0 | H198: 0 | I198: 0 | J198: 0 | K198: 0 | L198: 0 | M198: -0.68622 | N198: 7.2389 | O198: 0 | P198: 0 | Q198: 0 | R198: 0 | S198: 0 | T198: 0 | U198: 0 | V198: 0 | W198: 0 | X198: 0 | Y198: 0 | Z198: 0 | AA198: 0 | AB198: 0 | AC198: 0 | AD198: 0 | AE198: 0 | AF198: 0 | AG198: 0 | AH198: 0 | AI198: 0 | AJ198: 0
A199: 2014-10-03T01:14:59.997 | B199: 01:15:00 | C199: 41915.05208 | D199: 0 | E199: 0 | F199: 0 | G199: 0 | H199: 0 | I199: 0 | J199: 0 | K199: 0 | L199: 0 | M199: -0.67046 | N199: 7.3199 | O199: 0 | P199: 0 | Q199: 0 | R199: 0 | S199: 0 | T199: 0 | U199: 0 | V199: 0 | W199: 0 | X199: 0 | Y199: 0 | Z199: 0 | AA199: 0 | AB199: 0 | AC199: 0 | AD199: 0 | AE199: 0 | AF199: 0 | AG199: 0 | AH199: 0 | AI199: 0 | AJ199: 0
A200: 2014-10-03T01:29:59.997 | B200: 01:30:00 | C200: 41915.0625 | D200: 0 | E200: 0 | F200: 0 | G200: 0 | H200: 0 | I200: 0 | J200: 0 | K200: 0 | L200: 0 | M200: -0.65205 | N200: 7.2551 | O200: 0 | P200: 0 | Q200: 0 | R200: 0 | S200: 0 | T200: 0 | U200: 0 | V200: 0 | W200: 0 | X200: 0 | Y200: 0 | Z200: 0 | AA200: 0 | AB200: 0 | AC200: 0 | AD200: 0 | AE200: 0 | AF200: 0 | AG200: 0 | AH200: 0 | AI200: 0 | AJ200: 0
... 2050 more rows
